Workbook

Sheet db (hidden)
A1: Order | B1: Sascode | C1: Swedish | D1: Danish | E1: English | F1: Expl | G1: Unit | H1: Decimals and formatting values | I1: Decimals and formatting heading | J1: Column width | K1: Posetive with high value =1 | R1: Språkkod: | S1: 4
A2: 5 | B2: plh50 | C2: Plant nr | D2: Planter | E2: Plant no | F2: 0.5 | G2: 1000/ha | H2: 1 | I2: 1 | J2: 8 | K2: 1
A3: 6 | B3: plh100 | C3: Plant nr | D3: Planter | E3: Plant no | F3: 1 | G3: 1000/ha | H3: 1 | I3: 1 | J3: 8 | K3: 1 | R3: Svenska | S3: 3
A4: 7 | B4: weirot | C4: Rot | D4: Rod | E4: Root | G4: t/ha | H4: 1 | I4: 1 | J4: 5 | K4: 1 | R4: Danska | S4: 4
A5: 8 | B5: pol | C5: Socker | D5: Sukker | E5: Sugar | G5: % | H5: 1 | I5: 1 | J5: 7 | K5: 1 | R5: Engelska | S5: 5
A6: 9 | B6: sug | C6: Socker | D6: Sukker | E6: Sugar | G6: t/ha | H6: 1 | I6: 1 | J6: 7 | K6: 1
A7: 10 | B7: sugrel | C7: Socker | D7: Sukker | E7: Sugar | G7: relative | H7: 1 | I7: 1 | J7: 7 | K7: 1
A8: 11 | B8: x | C8: Vitt socker | D8: Hv. sukker | E8: White sugar | G8: t/ha | H8: 1 | I8: 1 | J8: 8 | K8: 1
A9: 12 | B9: dirt | C9: Jord | D9: Vh. jord | E9: Tare | G9: % | H9: 1 | I9: 100 | J9: 7 | K9: 0
A10: 13 | B10: renpct | C10: Renhet | D10: Renhed | E10: Cleaness | G10: % | H10: 1 | I10: 100 | J10: 7 | K10: 1
A11: 14 | B11: rodfure | C11: Rotfåra | D11: Rodfure | E11: Groove | G11: Sc. 1-9 | H11: 1 | I11: 1 | J11: 8 | K11: 1
A12: 15 | B12: econ | C12: Ekonomi | D12: Økonomi | E12: Economy | F12: Total income | G12: DKK/ha | H12: 1 | I12: 1 | J12: 12 | K12: 1
A13: 16 | B13: diffecon | C13: Ekonomi | D13: Økonomi | E13: Economy | F13: Diff to avg. | G13: DKK/ha | H13: 1 | I13: 1 | J13: 12 | K13: 1
A14: 17 | B14: k100r | C14: K | D14: K | E14: K | G14: pr 100 g sukker | H14: 1 | I14: 1 | J14: 5 | K14: 0
A15: 18 | B15: na100r | C15: Na | D15: Na | E15: Na | H15: 1 | I15: 1 | J15: 5 | K15: 0
A16: 19 | B16: kna | C16: K+Na | H16: 1 | I16: 1 | J16: 5 | K16: 0
A17: 20 | B17: blaa | C17: Blåtal | D17: Amino-N | E17: Amino-N | H17: 1 | I17: 1 | J17: 8 | K17: 0
A18: 21 | B18: aph | C18: Aphanomyces | D18: Aphanomyces | E18: Aphanomyces | F18: At factory | G18: Sc. 1-9 | H18: 1 | I18: 1 | J18: 13 | K18: 0
A19: 22 | B19: x | C19: IV-tal | D19: IV-tal | E19: IV-tal | H19: 1 | I19: 1 | J19: 8 | K19: 0
A20: 23 | B20: erlbolt | C20: Fröstockar | D20: Stok | E20: Bolters | F20: Saxfjed | G20: ‰ | H20: 1 | I20: 1 | J20: 8 | K20: 0
A21: 24 | B21: erlside | C21: Sidoskott | D21: Stok | E21: Bolters | F21: Saxfjed | G21: ‰ | H21: 1 | I21: 1 | J21: 8 | K21: 0
A22: 25 | B22: latebolt | C22: Fröstockar | D22: Stok | E22: Bolters | F22: Late | G22: ‰ | H22: 1 | I22: 1 | J22: 10 | K22: 0
A23: 26 | B23: lateside | C23: Sidoskott | D23: Stok | E23: Lateral | F23: Late | G23: ‰ | H23: 1 | I23: 1 | J23: 8 | K23: 0
A24: 27 | B24: bolters | C24: Fröstockar | D24: Stok | E24: Bolters | G24: ‰ | H24: 1 | I24: 1 | J24: 10 | K24: 0
A25: 28 | B25: height | C25: Nackhöjd | D25: Højde | E25: Height | G25: mm | H25: 1 | I25: 1 | J25: 8 | K25: 1
A26: 29 | B26: hojde_s15 | C26: Nackhöjd sd | D26: Højde std | E26: Height std | G26: mm | H26: 1 | I26: 1 | J26: 11 | K26: 1
A27: 30 | B27: x | C27: Bladtäckning | D27: Bladdække | E27: Leafcover | G27: Sc. 1-100 | H27: 1 | I27: 1 | J27: 8 | K27: 1
A28: 31 | B28: x | C28: Friskhet | D28: Topfriskhed | E28: Topvigour | G28: Sc. 1-10 | H28: 1 | I28: 1 | J28: 8 | K28: 1
A29: 32 | B29: vaskbarhed | C29: Tvättbarhet | D29: Vaskbar | E29: Washability | G29: Sc. 1-9 | H29: 1 | I29: 1 | J29: 8 | K29: 1
A30: 33 | B30: grenethed | C30: Grenighet | D30: Grene | E30: Branching | G30: Sc. 1-9 | H30: 1 | I30: 1 | J30: 8 | K30: 1
A31: 34 | B31: glathed | C31: Ytans jämnhet | D31: Glathed | E31: Smoothness | G31: Sc. 1-4 | H31: 1 | I31: 1 | J31: 11 | K31: 1
A32: 35 | B32: x | J32: 8
A33: 36 | B33: mildew1 | C33: Mjöldagg | D33: Meldug | E33: Mildew | F33: Aug | G33: Sc. 1-100 | H33: 1 | I33: 1 | J33: 8 | K33: 0
A34: 37 | B34: rust1 | C34: Rost | D34: Rust | E34: Rust | F34: Aug | G34: Sc. 1-100 | H34: 1 | I34: 1 | J34: 8 | K34: 0
A35: 38 | B35: ramularia1 | C35: Ramularia | D35: Ramu-laria | E35: Ramularia | F35: Aug | G35: Sc. 1-100 | H35: 1 | I35: 1 | J35: 9 | K35: 0
A36: 39 | B36: cercospora1 | C36: Cercospora | D36: Cer-cospora | E36: Cercospora | F36: Aug | G36: Sc. 1-100 | H36: 1 | I36: 1 | J36: 11 | K36: 0
A37: 40 | B37: mildew2 | C37: Mjöldagg | D37: Meldug | E37: Mildew | F37: Sept | G37: Sc. 1-100 | H37: 1 | I37: 1 | J37: 8 | K37: 0
A38: 41 | B38: rust2 | C38: Rost | D38: Rust | E38: Rust | F38: Sept | G38: Sc. 1-100 | H38: 1 | I38: 1 | J38: 8 | K38: 0
A39: 42 | B39: ramularia2 | C39: Ramularia | D39: Ramu-laria | E39: Ramularia | F39: Sept | G39: Sc. 1-100 | H39: 1 | I39: 1 | J39: 9 | K39: 0
A40: 43 | B40: cercospora2 | C40: Cercospora | D40: Cer-cospora | E40: Cercospora | F40: Sept | G40: Sc. 1-100 | H40: 1 | I40: 1 | J40: 11 | K40: 0
A41: 44 | B41: mildew2 | C41: Mjöldagg | D41: Meldug | E41: Mildew | F41: Okt | G41: Sc. 1-100 | H41: 1 | I41: 1 | J41: 8 | K41: 0
A42: 45 | B42: rust2 | C42: Rost | D42: Rust | E42: Rust | F42: Okt | G42: Sc. 1-100 | H42: 1 | I42: 1 | J42: 8 | K42: 0
A43: 46 | B43: ramularia2 | C43: Ramularia | D43: Ramu-laria | E43: Ramularia | F43: Okt | G43: Sc. 1-100 | H43: 1 | I43: 1 | J43: 9 | K43: 0
A44: 47 | B44: cercospora2 | C44: Cercospora | D44: Cer-cospora | E44: Cercospora | F44: Okt | G44: Sc. 1-100 | H44: 1 | I44: 1 | J44: 11 | K44: 0
A45: 48 | B45: dubl | C45: Dubletter | E45: Duplets | G45: 1000/ha | H45: 1 | I45: 1 | J45: 8 | K45: 0
A46: 49 | B46: pellar | C46: Pellar | E46: Sec.gen | G46: 1000/ha | H46: 1 | I46: 1 | J46: 8 | K46: 0
A47: 50 | B47: seedqual | C47: Luckor | E47: Nr of gaps | F47: per plot | G47: >50 cm | H47: 1 | I47: 1 | J47: 12 | K47: 0
A48: 51 | B48: Svampresistens | C48: Svampresistens | E48: untreated/treated | F48: Leaf diseases | G48: % | H48: 1 | J48: 14 | K48: 1
A49: 100 | B49: Type | J49: 8

Sheet NBR forside
B3: 109-2017
A15: Sorter Sygdomme 2017
A21: Variety and suceptability to leaf diseases 2017
A27: Dokumentation og tabeller med resultater
A28: Försöksdata och resultattabeller
A29: Trial data and tables of results
A32: Bilaget indeholder dokumentation fra forsøgsserien og projektet.
A33: Der kan forekomme mindre sproglige fejl og uhensigtsmæssigheder i forhold til layout.
A34: Spørgsmål kan rettes til projektlederen.
A36: Denna publikation innehåller försöksdata och resultat i tabeller och figurer. Det kan förekomma
A37: mindre fel och inkonsekvenser i språk och layout. Alla sidor är inte alltid utskriftsvänliga.
A38: Vid frågor eller kommentarer är du alltid välkommen att kontakta författaren nedan.
A40: The appendix comprises documentations from the research project. Minor mistakes in language and
A41: lack of adjustments in layout may occur. Questions may be addressed to the project manager.
A46: Anne Lisbet Hansen; Desirée Börjesdotter
A47: alh@nordicbeetresearch.nu
A48: +45 21 26 61 67
A50: NBR Nordic Beet Research Foundation (Fond)
A51: DK: Højbygårdvej 14, DK-4960 Holeby
A52: SE: Borgeby Slottsväg 11, SE-237 91 Bjärred
A53: Phone: +45 54 60 14 40 | B53: http://www.nordicbeet.nu/

Sheet Information

Sheet Plan
A1: Formål/aim:
A8: Entry | B8: Variety-code | C8: Name | D8: Marketed | E8: Observation | F8: Breeders Reference | G8: Resistance | H8: Owner | I8: Years in test | J8: 1. year in NBR-trial
A9: 1 | B9: 24800 | C9: Pasteur | D9: * | F9: SD 12827 | G9: RT | H9: Strube | I9: 10
A10: 2 | B10: 27474 | C10: Lombok | D10: * | F10: SN-515 | G10: RT+NT | H10: SESVDH | I10: 7
A11: 3 | B11: 25764 | C11: Criollo | D11: * | F11: SR-426 | G11: RT | H11: SESVDH | I11: 9
A12: 4 | B12: 27451 | C12: Jollina KWS | D12: * | F12: 1K218 | G12: RT | H12: KWS | I12: 7
A13: 5 | B13: 28094 | C13: Fairway | D13: * | F13: MA2092 | G13: RT | H13: Maribo Seed | I13: 6
A14: 6 | B14: 28863 | C14: Cantona KWS | D14: * | F14: 3K394 | G14: RT+NT | H14: KWS | I14: 5
A15: 7 | B15: 28932 | C15: Starling | D15: * | F15: SR-842 | G15: RT | H15: SESVDH | I15: 5
A16: 8 | B16: 29591 | C16: Ragna KWS | F16: 3K392 | G16: RT+NT | H16: KWS | I16: 4
A17: 9 | B17: 29592 | C17: Daphna | D17: * | F17: 3K393 | G17: RT+NT | H17: KWS | I17: 4
A18: 10 | B18: 29593 | C18: Smilla KWS | E18: o | F18: 4K444 | G18: RT | H18: KWS | I18: 4
A19: 11 | B19: 29662 | C19: Degas | D19: * | F19: ST 12404 | G19: RT | H19: Strube | I19: 4
A20: 12 | B20: 29664 | C20: Klimt | E20: o | F20: ST 12422 | G20: RT | H20: Strube | I20: 4
A21: 13 | B21: 30335 | C21: Farina KWS | F21: 5K562 | G21: RT | H21: KWS | I21: 3
A22: 14 | B22: 30338 | C22: Selma KWS | E22: o | F22: 5K576 | G22: RT | H22: KWS | I22: 3
A23: 15 | B23: 30341 | C23: Einar | E23: o | F23: ST 12522 | G23: RT | H23: Strube | I23: 4
A24: 16 | B24: 30347 | C24: Bazin | F24: St 15507 | G24: RT+NT | H24: Strube | I24: 3
A25: 17 | B25: 30350 | C25: Thorsen | F25: ST 15532 | G25: RT+NT | H25: Strube | I25: 3
A26: 18 | B26: 30354 | C26: Jura | E26: o | F26: SV1633 | G26: RT+NT | H26: SESVDH | I26: 3
A27: 19 | B27: 30355 | C27: Whisky | E27: o | F27: SV1656 | G27: RT | H27: SESVDH | I27: 4
A28: 20 | B28: 30389 | C28: Mustang | E28: o | F28: HI1438 | G28: RT | H28: Syngenta Seeds | I28: 3
A29: 21 | B29: 30413 | C29: Davinci | E29: o | F29: MA2194 | G29: RT | H29: Maribo Seed | I29: 3
A30: 22 | B30: 30416 | C30: Joker | E30: o | F30: MA4059 | G30: RT+NT | H30: Maribo Seed | I30: 3
A31: 23 | B31: 31056 | C31: 6K649 | F31: 6K649 | G31: RT | H31: KWS | I31: 2
A32: 24 | B32: 31063 | C32: 6K680 | F32: 6K680 | G32: RT+NT | H32: KWS | I32: 2
A33: 25 | B33: 31067 | C33: 6K697 | F33: 6K697 | G33: RT+NT | H33: KWS | I33: 2
A34: 26 | B34: 31082 | C34: SV1722 | F34: SV1722 | G34: RT | H34: SESVDH | I34: 2
A35: 27 | B35: 31083 | C35: SV1723 | F35: SV1723 | G35: RT+NT | H35: SESVDH | I35: 2
A36: 28 | B36: 31084 | C36: SV1740 | F36: SV1740 | G36: RT+NT | H36: SESVDH | I36: 2
A37: 29 | B37: 31087 | C37: SV1758 | F37: SV1758 | G37: RT | H37: SESVDH | I37: 2
A38: 30 | B38: 31088 | C38: SV1765 | F38: SV1765 | G38: RT | H38: SESVDH | I38: 2
A39: 31 | B39: 31090 | C39: SV1800 | F39: SV1800 | G39: RT | H39: SESVDH | I39: 2
A40: 32 | B40: 31115 | C40: ST12651 | F40: ST12651 | G40: RT | H40: Strube | I40: 2
A41: 33 | B41: 31117 | C41: ST12664 | F41: ST12664 | G41: RT | H41: Strube | I41: 2
A42: 34 | B42: 31118 | C42: ST12668 | F42: ST12668 | G42: RT | H42: Strube | I42: 2
A43: 35 | B43: 31119 | C43: ST15616 | F43: ST15616 | G43: RT+NT | H43: Strube | I43: 2
A44: 36 | B44: 31130 | C44: HI 1426 | F44: HI 1426 | G44: RT | H44: Syngenta Seeds | I44: 2
A45: 37 | B45: 31131 | C45: HI 1469 | F45: HI 1469 | G45: RT | H45: Syngenta Seeds | I45: 2
A46: 38 | B46: 31141 | C46: MA2210 | F46: MA2210 | G46: RT | H46: Maribo Seed | I46: 2
A47: 39 | B47: 31143 | C47: MA2213 | F47: MA2213 | G47: RT | H47: Maribo Seed | I47: 2
A48: 40 | B48: 31144 | C48: MA4069 | F48: MA4069 | G48: RT+NT | H48: Maribo Seed | I48: 2
A49: 41 | B49: 31147 | C49: MA4075 | F49: MA4075 | G49: RT+NT | H49: Maribo Seed | I49: 2

Sheet 109 3 year
A1: 1 | B1: 2 | C1: 3 | D1: 4 | E1: 36 | F1: 37 | G1: 38 | H1: 39 | I1: 40 | J1: 41 | K1: 42 | L1: 43 | M1: 44 | N1: 45 | O1: 46 | P1: 47 | ALL1: 1
E2: 109 | F2: 109 | G2: 109 | H2: 109 | I2: 109 | J2: 109 | K2: 109 | L2: 109 | M2: 109 | N2: 109 | O2: 109 | P2: 109
A3: 109-2015-17 | E3: Meldug | F3: Rust | G3: Ramu-laria | H3: Cer-cospora | I3: Meldug | J3: Rust | K3: Ramu-laria | L3: Cer-cospora | M3: Meldug | N3: Rust | O3: Ramu-laria | P3: Cer-cospora
A4: Natural infected | E4: Mildew | F4: Rust | G4: Ramularia | H4: Cercospora | I4: Mildew | J4: Rust | K4: Ramularia | L4: Cercospora | M4: Mildew | N4: Rust | O4: Ramularia | P4: Cercospora
A5: Expl. | E5: Aug | F5: Aug | G5: Aug | H5: Aug | I5: Sept | J5: Sept | K5: Sept | L5: Sept | M5: Okt | N5: Okt | O5: Okt | P5: Okt
A6: no trials
A7: Unit | E7: Sc. 1-100 | F7: Sc. 1-100 | G7: Sc. 1-100 | H7: Sc. 1-100 | I7: Sc. 1-100 | J7: Sc. 1-100 | K7: Sc. 1-100 | L7: Sc. 1-100 | M7: Sc. 1-100 | N7: Sc. 1-100 | O7: Sc. 1-100 | P7: Sc. 1-100
A8: Avg for * | E8: 13.26774691 | F8: 9.648533951 | G8: 6.281635802 | H8: 0.6495627572 | I8: 30.0462963 | J8: 56.55864198 | K8: 28.11824846 | L8: 2.006494342 | M8: 13.53472222 | N8: 38.13425926 | O8: 26.95601852 | P8: 0.3260030864
A9: 1 | B9: * | D9: Pasteur | E9: 14.50231481 | F9: 9.364583333 | G9: 8.997685185 | H9: 0.2650462963 | I9: 28.93518519 | J9: 57.91666667 | K9: 28.36516204 | L9: 5.500578704 | M9: 16.53472222 | N9: 36.65277778 | O9: 31.21527778 | P9: 0.08680555556
A10: 2 | B10: * | D10: Lombok | E10: 21.16898148 | F10: 8.03125 | G10: 8.219907407 | H10: 0.5127314815 | I10: 33.37962963 | J10: 56.25 | K10: 33.69849537 | L10: 3.278356481 | M10: 27.36805556 | N10: 37.48611111 | O10: 32.04861111 | P10: 0.08680555556
A11: 3 | B11: * | D11: Criollo | E11: 15.61342593 | F11: 6.920138889 | G11: 8.219907407 | H11: 3.068287037 | I11: 33.37962963 | J11: 60.13888889 | K11: 31.14293981 | L11: 1.056134259 | M11: 6.534722222 | N11: 40.81944444 | O11: 28.38194444 | P11: 1.579861111
A12: 4 | B12: * | D12: Jollina KWS | E12: 14.50231481 | F12: 17.69791667 | G12: 6.553240741 | H12: 0.2650462963 | I12: 17.82407407 | J12: 56.80555556 | K12: 28.14293981 | L12: 1.056134259 | M12: 4.868055556 | N12: 40.81944444 | O12: 25.38194444 | P12: 0.08680555556
A13: 5 | B13: * | D13: Fairway | E13: 14.50231481 | F13: 11.25347222 | G13: 5.775462963 | H13: 0.06828703704 | I13: 33.37962963 | J13: 63.47222222 | K13: 27.58738426 | L13: 1.056134259 | M13: 19.03472222 | N13: 38.31944444 | O13: 28.71527778 | P13: 0.08680555556
A14: 6 | B14: * | D14: Cantona KWS | E14: 4.502314815 | F14: 7.920138889 | G14: 1.775462963 | H14: 0.2650462963 | I14: 23.37962963 | J14: 49.58333333 | K14: 19.80960648 | L14: 0.05497685185 | M14: 9.034722222 | N14: 38.31944444 | O14: 17.88194444 | P14: 0.7465277778
A15: 7 | B15: * | D15: Starling | E15: 12.28009259 | F15: 9.03125 | G15: 5.997685185 | H15: 0.2905092593 | I15: 33.37962963 | J15: 55.13888889 | K15: 28.36516204 | L15: 4.389467593 | M15: 20.03472222 | N15: 36.65277778 | O15: 28.21527778 | P15: 0.08680555556
A16: 8 | D16: Ragna KWS | E16: 0.05787037037 | F16: 6.03125 | G16: 3.997685185 | H16: 0.1539351852 | I16: 33.37962963 | J16: 49.58333333 | K16: 28.92071759 | L16: 2.16724537 | M16: 3.201388889 | N16: 27.48611111 | O16: 22.04861111 | P16: 0.08680555556
A17: 9 | B17: * | D17: Daphna | E17: 3.391203704 | F17: 5.475694444 | G17: 6.553240741 | H17: 0.8460648148 | I17: 33.37962963 | J17: 50.13888889 | K17: 29.25405093 | L17: 1.611689815 | M17: 4.868055556 | N17: 33.31944444 | O17: 28.71527778 | P17: 0.08680555556
A18: 10 | C18: o | D18: Smilla KWS | E18: 5.613425926 | F18: 8.03125 | G18: 8.219907407 | H18: 3.40162037 | I18: 24.49074074 | J18: 48.47222222 | K18: 26.47627315 | L18: 7.722800926 | M18: 9.868055556 | N18: 33.31944444 | O18: 27.88194444 | P18: 0.7465277778
A19: 11 | B19: * | D19: Degas | E19: 18.94675926 | F19: 11.14236111 | G19: 4.44212963 | H19: 0.2650462963 | I19: 33.37962963 | J19: 59.58333333 | K19: 26.69849537 | L19: 0.05497685185 | M19: 13.53472222 | N19: 40.81944444 | O19: 22.04861111 | P19: 0.08680555556
A20: 12 | C20: o | D20: Klimt | E20: 7.835648148 | F20: 7.809027778 | G20: 6.664351852 | H20: 0.2650462963 | I20: 33.37962963 | J20: 56.25 | K20: 27.80960648 | L20: 0.5005787037 | M20: 4.868055556 | N20: 26.48611111 | O20: 28.71527778 | P20: 0.7465277778
A21: LSD | E21: 10.0482062 | F21: 4.342187722 | G21: ns | H21: ns | I21: 10.35645787 | J21: 5.749326691 | K21: 5.870407242 | L21: ns | M21: 13.08029543 | N21: ns | O21: ns | P21: ns
A22: CV | E22: 97.38899364 | F22: 48.95547423 | G22: 122.1823376 | H22: 510.6219846 | I22: 36.7532867 | J22: 11.0242653 | K22: 22.22102442 | L22: 328.882856 | M22: 111.8526192 | N22: 24.48791171 | O22: 42.01526095 | P22: 435.3323853
A23: p-value | E23: 0.0004887356954 | F23: 2.844521826e-05 | G23: 0.5021103189 | H23: 0.578745237 | I23: 0.02749880085 | J23: 8.517058393e-07 | K23: 0.01082769651 | L23: 0.600380068 | M23: 0.006434571058 | N23: 0.05462915734 | O23: 0.5971718157 | P23: 0.6251401145

Sheet 109 2 year
A1: 1 | B1: 2 | C1: 3 | D1: 4 | E1: 36 | F1: 37 | G1: 38 | H1: 39 | I1: 40 | J1: 41 | K1: 42 | L1: 43 | M1: 44 | N1: 45 | O1: 46 | P1: 47 | ALL1: 1
E2: 109 | F2: 109 | G2: 109 | H2: 109 | I2: 109 | J2: 109 | K2: 109 | L2: 109 | M2: 109 | N2: 109 | O2: 109 | P2: 109
A3: 109-2015-17 | E3: Meldug | F3: Rust | G3: Ramu-laria | H3: Cer-cospora | I3: Meldug | J3: Rust | K3: Ramu-laria | L3: Cer-cospora | M3: Meldug | N3: Rust | O3: Ramu-laria | P3: Cer-cospora
A4: Natural infected | E4: Mildew | F4: Rust | G4: Ramularia | H4: Cercospora | I4: Mildew | J4: Rust | K4: Ramularia | L4: Cercospora | M4: Mildew | N4: Rust | O4: Ramularia | P4: Cercospora
A5: Expl. | E5: Aug | F5: Aug | G5: Aug | H5: Aug | I5: Sept | J5: Sept | K5: Sept | L5: Sept | M5: Okt | N5: Okt | O5: Okt | P5: Okt
A6: no trials
A7: Unit | E7: Sc. 1-100 | F7: Sc. 1-100 | G7: Sc. 1-100 | H7: Sc. 1-100 | I7: Sc. 1-100 | J7: Sc. 1-100 | K7: Sc. 1-100 | L7: Sc. 1-100 | M7: Sc. 1-100 | N7: Sc. 1-100 | O7: Sc. 1-100 | P7: Sc. 1-100
A8: Avg for * | E8: 19.83375421 | F8: 11.9665404 | G8: 8.35479798 | H8: 1.000210438 | I8: 45.3219697 | J8: 52.22748316 | K8: 42.36195286 | L8: 2.921927609 | M8: 14 | N8: 37.22222222 | O8: 53.07407407 | P8: 0.5555555556
A9: 1 | B9: * | D9: Pasteur | E9: 21.68560606 | F9: 12.57765152 | G9: 12.46590909 | H9: 0.1647727273 | I9: 43.65530303 | J9: 51.48674242 | K9: 41.78787879 | L9: 8.09280303 | M9: 23.33333333 | N9: 33.33333333 | O9: 61.66666667 | P9: 1.103175711e-16
A10: 2 | B10: * | D10: Lombok | E10: 31.68560606 | F10: 11.07765152 | G10: 11.29924242 | H10: 1.001893939 | I10: 50.3219697 | J10: 53.15340909 | K10: 50.95454545 | L10: 4.759469697 | M10: 21.66666667 | N10: 36.66666667 | O10: 63.33333333 | P10: 1.103175711e-16
A11: 3 | B11: * | D11: Criollo | E11: 23.35227273 | F11: 8.910984848 | G11: 11.29924242 | H11: 4.835227273 | I11: 50.3219697 | J11: 53.98674242 | K11: 47.12121212 | L11: 1.426136364 | M11: 6.666666667 | N11: 36.66666667 | O11: 56 | P11: 3.333333333
A12: 4 | B12: * | D12: Jollina KWS | E12: 21.68560606 | F12: 20.41098485 | G12: 8.799242424 | H12: 0.1647727273 | I12: 26.98863636 | J12: 53.98674242 | K12: 42.62121212 | L12: 1.426136364 | M12: -1.415968037e-15 | N12: 43.33333333 | O12: 50 | P12: 1.103175711e-16
A13: 5 | B13: * | D13: Fairway | E13: 21.68560606 | F13: 14.07765152 | G13: 7.632575758 | H13: 0.3352272727 | I13: 50.3219697 | J13: 55.65340909 | K13: 41.78787879 | L13: 1.426136364 | M13: 21.66666667 | N13: 30 | O13: 56.66666667 | P13: 2.33076362e-15
A14: 6 | B14: * | D14: Cantona KWS | E14: 6.685606061 | F14: 10.91098485 | G14: 1.632575758 | H14: 0.1647727273 | I14: 35.3219697 | J14: 46.48674242 | K14: 30.12121212 | L14: 0.240530303 | M14: 15 | N14: 40 | O14: 35 | P14: 1.666666667
A15: 7 | B15: * | D15: Starling | E15: 18.35227273 | F15: 10.74431818 | G15: 7.965909091 | H15: 0.6685606061 | I15: 50.3219697 | J15: 51.48674242 | K15: 42.95454545 | L15: 6.426136364 | M15: 23.66666667 | N15: 33.33333333 | O15: 55 | P15: 1.103175711e-16
A16: 8 | D16: Ragna KWS | E16: 0.01893939394 | F16: 7.077651515 | G16: 4.965909091 | H16: 0.001893939394 | I16: 50.3219697 | J16: 46.48674242 | K16: 43.45454545 | L16: 3.09280303 | M16: 8.04478012e-16 | N16: 30 | O16: 43.33333333 | P16: 1.103175711e-16
A17: 9 | B17: * | D17: Daphna | E17: 5.018939394 | F17: 7.744318182 | G17: 8.799242424 | H17: 1.501893939 | I17: 50.3219697 | J17: 47.32007576 | K17: 43.45454545 | L17: 2.259469697 | M17: 6.666666667 | N17: 35 | O17: 56.66666667 | P17: 1.103175711e-16
A18: 10 | C18: o | D18: Smilla KWS | E18: 8.352272727 | F18: 8.744318182 | G18: 11.29924242 | H18: 5.335227273 | I18: 36.98863636 | J18: 43.15340909 | K18: 40.12121212 | L18: 11.42613636 | M18: 16.66666667 | N18: 36.66666667 | O18: 55 | P18: 1.666666667
A19: 11 | B19: * | D19: Degas | E19: 28.35227273 | F19: 11.24431818 | G19: 5.299242424 | H19: 0.1647727273 | I19: 50.3219697 | J19: 56.48674242 | K19: 40.45454545 | L19: 0.240530303 | M19: 7.333333333 | N19: 46.66666667 | O19: 43.33333333 | P19: 1.103175711e-16
A20: 12 | C20: o | D20: Klimt | E20: 11.68560606 | F20: 9.744318182 | G20: 8.965909091 | H20: 0.1647727273 | I20: 50.3219697 | J20: 51.48674242 | K20: 40.95454545 | L20: 0.5928030303 | M20: 6.666666667 | N20: 24.66666667 | O20: 56.66666667 | P20: 1.666666667
A21: 13 | D21: Farina KWS | E21: 10.01893939 | F21: 13.74431818 | G21: 11.29924242 | H21: 2.835227273 | I21: 50.3219697 | J21: 45.65340909 | K21: 44.28787879 | L21: 3.09280303 | M21: -1.415968037e-15 | N21: 26.66666667 | O21: 60 | P21: 1.103175711e-16
A22: 14 | C22: o | D22: Selma KWS | E22: 26.68560606 | F22: 24.74431818 | G22: 0.7992424242 | H22: 0.1647727273 | I22: 40.3219697 | J22: 64.82007576 | K22: 5.121212121 | L22: 9.759469697 | M22: 23.33333333 | N22: 48.33333333 | O22: 25 | P22: 1.666666667
A23: 15 | C23: o | D23: Einar | E23: 13.35227273 | F23: 9.077651515 | G23: 4.632575758 | H23: 0.1647727273 | I23: 50.3219697 | J23: 51.48674242 | K23: 37.95454545 | L23: 0.240530303 | M23: 3.333333333 | N23: 30 | O23: 50 | P23: 1.103175711e-16
A24: 16 | D24: Bazin | E24: 15.01893939 | F24: 5.744318182 | G24: 14.63257576 | H24: 0.1647727273 | I24: 35.3219697 | J24: 49.82007576 | K24: 41.78787879 | L24: 0.0928030303 | M24: 16.66666667 | N24: 30 | O24: 61.66666667 | P24: 1.220540596e-15
A25: 17 | D25: Thorsen | E25: 31.68560606 | F25: 5.744318182 | G25: 11.46590909 | H25: 0.1647727273 | I25: 50.3219697 | J25: 48.15340909 | K25: 45.12121212 | L25: 1.426136364 | M25: 11.66666667 | N25: 46.66666667 | O25: 51.66666667 | P25: 1.220540596e-15
A26: 18 | C26: o | D26: Jura | E26: 26.68560606 | F26: 14.57765152 | G26: 15.46590909 | H26: 1.168560606 | I26: 50.3219697 | J26: 49.82007576 | K26: 44.28787879 | L26: 0.5928030303 | M26: 15 | N26: 34.66666667 | O26: 68.33333333 | P26: 1.220540596e-15
A27: 19 | C27: o | D27: Whisky | E27: 18.35227273 | F27: 8.744318182 | G27: 18.79924242 | H27: 0.1647727273 | I27: 50.3219697 | J27: 47.32007576 | K27: 45.12121212 | L27: 0.240530303 | M27: 16.66666667 | N27: 43.33333333 | O27: 63.33333333 | P27: 1.220540596e-15
A28: 20 | C28: o | D28: Mustang | E28: 13.35227273 | F28: 17.41098485 | G28: 12.96590909 | H28: 0.6685606061 | I28: 50.3219697 | J28: 58.98674242 | K28: 43.45454545 | L28: 3.09280303 | M28: 21.66666667 | N28: 36.66666667 | O28: 70 | P28: 13.33333333
A29: 21 | C29: o | D29: Davinci | E29: 21.68560606 | F29: 10.41098485 | G29: 17.13257576 | H29: 0.1647727273 | I29: 40.3219697 | J29: 44.82007576 | K29: 51.78787879 | L29: 11.42613636 | M29: 3.024924061e-15 | N29: 33.33333333 | O29: 72.66666667 | P29: 1.220540596e-15
A30: 22 | C30: o | D30: Joker | E30: 18.35227273 | F30: 15.41098485 | G30: 4.632575758 | H30: 0.1647727273 | I30: 50.3219697 | J30: 52.32007576 | K30: 41.78787879 | L30: 6.426136364 | M30: 13.33333333 | N30: 30 | O30: 50 | P30: 3.333333333
A31: LSD | E31: 13.27157915 | F31: 8.224744083 | G31: 9.561706454 | H31: ns | I31: 14.3143793 | J31: 6.323637741 | K31: 11.22961145 | L31: ns | M31: ns | N31: ns | O31: ns | P31: ns
A32: CV | E32: 64.85010082 | F32: 60.60495162 | G32: 90.97725814 | H32: 437.6840583 | I32: 27.32974877 | J32: 10.77155421 | K32: 23.87949744 | L32: 223.7299277 | M32: 105.2117382 | N32: 26.40137059 | O32: 26.87762063 | P32: 322.8465746
A33: p-value | E33: 1.974697892e-05 | F33: 0.0009760042853 | G33: 0.01494175538 | H33: 0.5076237353 | I33: 0.02083637858 | J33: 9.791632646e-09 | K33: 4.992680025e-09 | L33: 0.1966891024 | M33: 0.2372573399 | N33: 0.1369173545 | O33: 0.0635996676 | P33: 0.07833819891

Sheet 109 2017 Yield (Treat-Untreat)
A1: 1 | B1: 2 | C1: 3 | D1: 4 | E1: 7 | F1: 8 | G1: 9 | H1: 10 | I1: 20 | J1: 7 | K1: 8 | L1: 9 | M1: 10 | N1: 20 | O1: 10 | P1: 41 | Q1: 42 | R1: 45 | S1: 46 | T1: 41 | U1: 42 | V1: 45 | W1: 46 | ALL1: 1
E2: 109 | F2: 109 | G2: 109 | H2: 109 | I2: 109 | J2: 109 | K2: 109 | L2: 109 | M2: 109 | N2: 109 | O2: 109 | P2: 109 | Q2: 109 | R2: 109 | S2: 109 | T2: 109 | U2: 109 | V2: 109 | W2: 109
A3: 109-2017 | E3: Rod | F3: Sukker | G3: Sukker | H3: Sukker | I3: Amino-N | J3: Rod | K3: Sukker | L3: Sukker | M3: Sukker | N3: Amino-N | O3: Sukker | P3: Rust | Q3: Ramu-laria | R3: Rust | S3: Ramu-laria | T3: Rust | U3: Ramu-laria | V3: Rust | W3: Ramu-laria
A4: Led | D4: Sort | E4: Root | F4: Sugar | G4: Sugar | H4: Sugar | I4: Amino-N | J4: Root | K4: Sugar | L4: Sugar | M4: Sugar | N4: Amino-N | O4: Sugar | P4: Rust | Q4: Ramularia | R4: Rust | S4: Ramularia | T4: Rust | U4: Ramularia | V4: Rust | W4: Ramularia
A5: Entry | P5: Sept | Q5: Sept | R5: Okt | S5: Okt | T5: Sept | U5: Sept | V5: Okt | W5: Okt
E6: Treated | F6: Treated | G6: Treated | H6: Treated | I6: Treated | J6: Untreated | K6: Untreated | L6: Untreated | M6: Untreated | N6: Untreated | O6: Untreated/treated | P6: Treated | Q6: Treated | R6: Treated | S6: Treated | T6: Untreated | U6: Untreated | V6: Untreated | W6: Untreated
E7: t/ha | F7: % | G7: t/ha | H7: relative | J7: t/ha | K7: % | L7: t/ha | M7: relative | O7: relative | P7: Sc. 1-100 | Q7: Sc. 1-100 | R7: Sc. 1-100 | S7: Sc. 1-100 | T7: Sc. 1-100 | U7: Sc. 1-100 | V7: Sc. 1-100 | W7: Sc. 1-100
A8: Gns. dyrkede* sorter | E8: 89.22502215 | F8: 17.42545469 | G8: 15.54493219 | H8: 100 | I8: 43.43352071 | J8: 82.25303714 | K8: 16.9733129 | L8: 13.95184659 | M8: 100 | N8: 65.17748907 | O8: 0.8977431334 | P8: 27.96296296 | Q8: 46.11111111 | R8: 37.22222222 | S8: 50 | T8: 48.33333333 | U8: 68.51851852 | V8: 52.59259259 | W8: 79.44444444
A9: 1 | B9: * | D9: Pasteur | E9: 84.94799858 | F9: 17.48445758 | G9: 14.86180143 | H9: 95.60544394 | I9: 38.79920087 | J9: 80.32049469 | K9: 16.9640003 | L9: 13.61614738 | M9: 97.59387256 | N9: 60.22993492 | O9: 0.9161841816 | P9: 15 | Q9: 48.33333333 | R9: 26.66666667 | S9: 53.33333333 | T9: 50 | U9: 75 | V9: 53.33333333 | W9: 83.33333333
A10: 2 | B10: * | D10: Lombok | E10: 87.5537151 | F10: 17.08566492 | G10: 14.95277973 | H10: 96.19070414 | I10: 53.19541819 | J10: 82.86878571 | K10: 16.60593715 | L10: 13.76488498 | M10: 98.65995082 | N10: 86.18169145 | O10: 0.9205569286 | P10: 45 | Q10: 51.66666667 | R10: 33.33333333 | S10: 56.66666667 | T10: 48.33333333 | U10: 73.33333333 | V10: 53.33333333 | W10: 83.33333333
A11: 3 | B11: * | D11: Criollo | E11: 86.12373314 | F11: 17.46569013 | G11: 15.06750431 | H11: 96.92872333 | I11: 30.05740342 | J11: 79.53056354 | K11: 16.88142798 | L11: 13.41392524 | M11: 96.14444336 | N11: 57.37376773 | O11: 0.890255278 | P11: 13.33333333 | Q11: 50 | R11: 40 | S11: 53.33333333 | T11: 53.33333333 | U11: 66.66666667 | V11: 55 | W11: 85
A12: 4 | B12: * | D12: Jollina KWS | E12: 90.27531909 | F12: 17.48264135 | G12: 15.78989016 | H12: 101.575806 | I12: 38.35799805 | J12: 79.78164356 | K12: 16.94503183 | L12: 13.51772598 | M12: 96.88843619 | N12: 53.74037374 | O12: 0.8561000642 | P12: 40 | Q12: 43.33333333 | R12: 43.33333333 | S12: 46.66666667 | T12: 50 | U12: 76.66666667 | V12: 51.66666667 | W12: 81.66666667
A13: 5 | B13: * | D13: Fairway | E13: 85.51141591 | F13: 17.73517137 | G13: 15.17628611 | H13: 97.62851279 | I13: 45.50156699 | J13: 80.89881663 | K13: 17.40689425 | L13: 14.08859829 | M13: 100.9801692 | N13: 68.06152868 | O13: 0.9283297762 | P13: 35 | Q13: 50 | R13: 40 | S13: 50 | T13: 51.66666667 | U13: 71.66666667 | V13: 55 | W13: 76.66666667
A14: 6 | B14: * | D14: Cantona KWS | E14: 92.90283541 | F14: 17.51354143 | G14: 16.29199481 | H14: 104.8058275 | I14: 50.53864644 | J14: 82.96185013 | K14: 17.43189471 | L14: 14.47252264 | M14: 103.7319508 | N14: 69.25268055 | O14: 0.8883210931 | P14: 41.66666667 | Q14: 23.33333333 | R14: 41.66666667 | S14: 38.33333333 | T14: 45 | U14: 51.66666667 | V14: 46.66666667 | W14: 60
A15: 7 | B15: * | D15: Starling | E15: 88.04408343 | F15: 17.696386 | G15: 15.58562984 | H15: 100.2618066 | I15: 43.82905458 | J15: 81.86536529 | K15: 16.99659317 | L15: 13.89544117 | M15: 99.59571358 | N15: 64.13901537 | O15: 0.8915546762 | P15: 23.33333333 | Q15: 50 | R15: 40 | S15: 51.66666667 | T15: 55 | U15: 71.66666667 | V15: 50 | W15: 83.33333333
A16: 8 | D16: Ragna KWS | E16: 96.96625831 | F16: 17.21260402 | G16: 16.69050413 | H16: 107.3694239 | I16: 41.45252794 | J16: 89.34090292 | K16: 16.76859674 | L16: 14.98419139 | M16: 107.3993417 | N16: 73.52862532 | O16: 0.8977674534 | P16: 31.66666667 | Q16: 46.66666667 | R16: 26.66666667 | S16: 48.33333333 | T16: 50 | U16: 66 | V16: 50 | W16: 75
A17: 9 | B17: * | D17: Daphna | E17: 98.51123879 | F17: 16.70062082 | G17: 16.44509769 | H17: 105.7907329 | I17: 57.34524653 | J17: 92.88517909 | K17: 16.42450066 | L17: 15.24990984 | M17: 109.3038814 | N17: 73.8928837 | O17: 0.9273225447 | P17: 16.66666667 | Q17: 50 | R17: 30 | S17: 50 | T17: 35 | U17: 65 | V17: 51.66666667 | W17: 81.66666667
A18: 10 | C18: o | D18: Smilla KWS | E18: 94.47584277 | F18: 17.44960002 | G18: 16.47747141 | H18: 105.9989919 | I18: 45.39499823 | J18: 89.19325271 | K18: 17.16607731 | L18: 15.31768281 | M18: 109.7896448 | N18: 62.6230961 | O18: 0.9296136787 | P18: 36.66666667 | Q18: 46.66666667 | R18: 33.33333333 | S18: 50 | T18: 46.66666667 | U18: 71.66666667 | V18: 46.66666667 | W18: 76.66666667
A19: 11 | B19: * | D19: Degas | E19: 89.15485986 | F19: 17.66491862 | G19: 15.7334056 | H19: 101.2124428 | I19: 33.27715136 | J19: 79.16463558 | K19: 17.10353608 | L19: 13.54746377 | M19: 97.10158215 | N19: 53.72552551 | O19: 0.8610636576 | P19: 21.66666667 | Q19: 48.33333333 | R19: 40 | S19: 50 | T19: 46.66666667 | U19: 65 | V19: 56.66666667 | W19: 80
A20: 12 | C20: o | D20: Klimt | E20: 92.23447109 | F20: 17.61038951 | G20: 16.24641612 | H20: 104.5126214 | I20: 35.82499815 | J20: 85.19631508 | K20: 17.04886693 | L20: 14.52470284 | M20: 104.1059529 | N20: 55.36250903 | O20: 0.894025041 | P20: 26.66666667 | Q20: 50 | R20: 23.33333333 | S20: 55 | T20: 48.33333333 | U20: 70 | V20: 50 | W20: 81.66666667
A21: 13 | D21: Farina KWS | E21: 94.48057289 | F21: 17.42119582 | G21: 16.46309134 | H21: 105.9064854 | I21: 49.34939317 | J21: 90.0665424 | K21: 16.99619019 | L21: 15.2826446 | M21: 109.5385081 | N21: 82.49978393 | O21: 0.928297383 | P21: 35 | Q21: 51.66666667 | R21: 23.33333333 | S21: 51.66666667 | T21: 40 | U21: 68.33333333 | V21: 51.66666667 | W21: 81.66666667
A22: 14 | C22: o | D22: Selma KWS | E22: 97.14227653 | F22: 17.70961732 | G22: 17.2203364 | H22: 110.7778162 | I22: 52.23152369 | J22: 93.64952174 | K22: 17.48604342 | L22: 16.36158813 | M22: 117.2718466 | N22: 51.79112105 | O22: 0.9501317365 | P22: 36.66666667 | Q22: 5 | R22: 40 | S22: 5 | T22: 61.66666667 | U22: 30 | V22: 66.66666667 | W22: 10
A23: 15 | C23: o | D23: Einar | E23: 89.55714346 | F23: 17.72139324 | G23: 15.84831968 | H23: 101.951681 | I23: 37.46891576 | J23: 84.8475946 | K23: 17.22537147 | L23: 14.6046127 | M23: 104.6787077 | N23: 48.16076014 | O23: 0.9215243634 | P23: 26.66666667 | Q23: 48.33333333 | R23: 26.66666667 | S23: 50 | T23: 55 | U23: 65 | V23: 50 | W23: 75
A24: 16 | D24: Bazin | E24: 87.523541 | F24: 17.21614483 | G24: 15.06103901 | H24: 96.88713227 | I24: 42.2299859 | J24: 86.668101 | K24: 16.46927084 | L24: 14.2663445 | M24: 102.2541669 | N24: 56.61081681 | O24: 0.9472350805 | P24: 16.66666667 | Q24: 51.66666667 | R24: 13.33333333 | S24: 50 | T24: 48.33333333 | U24: 78.33333333 | V24: 50 | W24: 83.33333333
A25: 17 | D25: Thorsen | E25: 88.69708055 | F25: 17.07336843 | G25: 15.12665674 | H25: 97.30924883 | I25: 45.66071859 | J25: 79.82261438 | K25: 16.44465975 | L25: 13.12768057 | M25: 94.0927818 | N25: 53.08073704 | O25: 0.867850761 | P25: 26.66666667 | Q25: 48.33333333 | R25: 23.33333333 | S25: 50 | T25: 58.33333333 | U25: 73.33333333 | V25: 53.33333333 | W25: 81.66666667
A26: 18 | C26: o | D26: Jura | E26: 90.41504532 | F26: 16.77969551 | G26: 15.18567708 | H26: 97.68892461 | I26: 48.85482799 | J26: 82.40605602 | K26: 16.02282171 | L26: 13.20493643 | M26: 94.64651397 | N26: 56.04160194 | O26: 0.8695652065 | P26: 20 | Q26: 56.66666667 | R26: 20 | S26: 58.33333333 | T26: 50 | U26: 76.66666667 | V26: 50 | W26: 85
A27: 19 | C27: o | D27: Whisky | E27: 88.97646258 | F27: 17.75910529 | G27: 15.7909674 | H27: 101.5827358 | I27: 33.47128324 | J27: 82.61492423 | K27: 17.01828523 | L27: 14.06751285 | M27: 100.8290391 | N27: 61.29408252 | O27: 0.8908582033 | P27: 43.33333333 | Q27: 48.33333333 | R27: 33.33333333 | S27: 35 | T27: 51.66666667 | U27: 68.33333333 | V27: 51.66666667 | W27: 83.33333333
A28: 20 | C28: o | D28: Mustang | E28: 87.89824957 | F28: 17.64107496 | G28: 15.49671182 | H28: 99.68980008 | I28: 33.83755681 | J28: 80.91899232 | K28: 17.28778117 | L28: 13.96000948 | M28: 100.0585076 | N28: 71.33935241 | O28: 0.9008368773 | P28: 10 | Q28: 53.33333333 | R28: 30 | S28: 43.33333333 | T28: 50 | U28: 80 | V28: 58.33333333 | W28: 83.33333333
A29: 21 | C29: o | D29: Davinci | E29: 85.00216811 | F29: 18.01009831 | G29: 15.29441364 | H29: 98.38842306 | I29: 45.04838993 | J29: 78.01833993 | K29: 17.17009694 | L29: 13.40861107 | M29: 96.10635402 | N29: 68.40647635 | O29: 0.8766999105 | P29: 10 | Q29: 55 | R29: 16.66666667 | S29: 60 | T29: 50 | U29: 85 | V29: 46.66666667 | W29: 85
A30: 22 | C30: o | D30: Joker | E30: 92.67689041 | F30: 17.51188654 | G30: 16.22493242 | H30: 104.3744175 | I30: 41.72097119 | J30: 84.26514682 | K30: 17.09357343 | L30: 14.38304141 | M30: 103.0905932 | N30: 53.86127998 | O30: 0.886477739 | P30: 41.66666667 | Q30: 38.33333333 | R30: 30 | S30: 50 | T30: 50 | U30: 66.66666667 | V30: 55 | W30: 80
A31: 23 | D31: 6K649 | E31: 94.35270833 | F31: 18.10725359 | G31: 17.05860697 | H31: 109.7374164 | I31: 32.29013241 | J31: 83.50103556 | K31: 17.74402525 | L31: 14.83409416 | M31: 106.3235183 | N31: 69.68603059 | O31: 0.8695958699 | P31: 38.33333333 | Q31: 33.33333333 | R31: 36.66666667 | S31: 31.66666667 | T31: 46.66666667 | U31: 58.33333333 | V31: 51.66666667 | W31: 70
A32: 24 | D32: 6K680 | E32: 102.3478287 | F32: 16.96758322 | G32: 17.34354712 | H32: 111.5704264 | I32: 42.32663273 | J32: 94.09642914 | K32: 16.76460921 | L32: 15.77486296 | M32: 113.0664881 | N32: 78.10313512 | O32: 0.9095522877 | P32: 45 | Q32: 18.33333333 | R32: 48.33333333 | S32: 18.33333333 | T32: 48.33333333 | U32: 51.66666667 | V32: 51.66666667 | W32: 60
A33: 25 | D33: 6K697 | E33: 89.52708129 | F33: 18.38703596 | G33: 16.47411314 | H33: 105.9773883 | I33: 38.63621497 | J33: 81.69628994 | K33: 17.6695628 | L33: 14.44287189 | M33: 103.5194288 | N33: 63.26582591 | O33: 0.8767010259 | P33: 31.66666667 | Q33: 41.66666667 | R33: 20 | S33: 46.66666667 | T33: 51.66666667 | U33: 63.33333333 | V33: 51.66666667 | W33: 81.66666667
A34: 26 | D34: SV1722 | E34: 91.38715404 | F34: 17.86242001 | G34: 16.33960705 | H34: 105.1121153 | I34: 38.57299171 | J34: 81.98251986 | K34: 17.19578759 | L34: 14.10642543 | M34: 101.1079454 | N34: 67.05776415 | O34: 0.8633270918 | P34: 31.66666667 | Q34: 36.66666667 | R34: 48.33333333 | S34: 41.66666667 | T34: 53.33333333 | U34: 66.66666667 | V34: 55 | W34: 76.66666667
A35: 27 | D35: SV1723 | E35: 87.23003381 | F35: 16.90146384 | G35: 14.73198525 | H35: 94.77034107 | I35: 51.68020299 | J35: 79.66646818 | K35: 16.44116445 | L35: 13.10159069 | M35: 93.90578235 | N35: 72.14039846 | O35: 0.8893296094 | P35: 8.333333333 | Q35: 48.33333333 | R35: 16.66666667 | S35: 48.33333333 | T35: 53.33333333 | U35: 63.33333333 | V35: 51.66666667 | W35: 80
A36: 28 | D36: SV1740 | E36: 90.43132755 | F36: 16.84835889 | G36: 15.21743505 | H36: 97.8932225 | I36: 33.89447757 | J36: 85.87785986 | K36: 16.49902211 | L36: 14.17146177 | M36: 101.5740941 | N36: 57.19181568 | O36: 0.9312648107 | P36: 25 | Q36: 45 | R36: 30 | S36: 50 | T36: 50 | U36: 61.66666667 | V36: 53.33333333 | W36: 75
A37: 29 | D37: SV1758 | E37: 92.1046814 | F37: 17.17990257 | G37: 15.80734259 | H37: 101.6880768 | I37: 33.36846003 | J37: 85.59914765 | K37: 16.63913112 | L37: 14.22600172 | M37: 101.9650096 | N37: 53.83729488 | O37: 0.8999616246 | P37: 21.66666667 | Q37: 50 | R37: 33.33333333 | S37: 51.66666667 | T37: 50 | U37: 70 | V37: 51.66666667 | W37: 83.33333333
A38: 30 | D38: SV1765 | E38: 87.9196298 | F38: 17.64637421 | G38: 15.52040432 | H38: 99.84221307 | I38: 40.81119623 | J38: 80.3564293 | K38: 17.15949866 | L38: 13.78840442 | M38: 98.82852662 | N38: 57.42258558 | O38: 0.8884049756 | P38: 33.33333333 | Q38: 48.33333333 | R38: 46.66666667 | S38: 46.66666667 | T38: 51.66666667 | U38: 63.33333333 | V38: 51.66666667 | W38: 78.33333333
A39: 31 | D39: SV1800 | E39: 90.23244411 | F39: 17.71798679 | G39: 15.98655256 | H39: 102.8409283 | I39: 38.95304965 | J39: 79.91110932 | K39: 17.14547642 | L39: 13.70087085 | M39: 98.20112887 | N39: 49.66042296 | O39: 0.8570247269 | P39: 20 | Q39: 50 | R39: 40 | S39: 53.33333333 | T39: 46.66666667 | U39: 66.66666667 | V39: 55 | W39: 76.66666667
A40: 32 | D40: ST12651 | E40: 88.69539322 | F40: 17.17093357 | G40: 15.22101007 | H40: 97.91622044 | I40: 37.93117717 | J40: 79.53256617 | K40: 17.0978341 | L40: 13.60245596 | M40: 97.49573915 | N40: 63.42897348 | O40: 0.89366316 | P40: 48.33333333 | Q40: 25 | R40: 46.66666667 | S40: 36.66666667 | T40: 46.66666667 | U40: 60 | V40: 55 | W40: 70
A41: 33 | D41: ST12664 | E41: 82.93220819 | F41: 17.83427313 | G41: 14.79924625 | H41: 95.2030287 | I41: 47.56481669 | J41: 78.57098013 | K41: 17.52207126 | L41: 13.77088575 | M41: 98.70296136 | N41: 73.97567736 | O41: 0.9305126431 | P41: 30 | Q41: 41.66666667 | R41: 40 | S41: 50 | T41: 48.33333333 | U41: 60 | V41: 51.66666667 | W41: 73.33333333
A42: 34 | D42: ST12668 | E42: 88.06795662 | F42: 17.96109313 | G42: 15.8238896 | H42: 101.7945232 | I42: 48.07890921 | J42: 80.62250726 | K42: 17.03646757 | L42: 13.73991652 | M42: 98.48098914 | N42: 80.5161445 | O42: 0.8683020969 | P42: 43.33333333 | Q42: 40 | R42: 36.66666667 | S42: 50 | T42: 58.33333333 | U42: 75 | V42: 53.33333333 | W42: 81.66666667
A43: 35 | D43: ST15616 | E43: 87.71781895 | F43: 16.49463791 | G43: 14.45787398 | H43: 93.00699295 | I43: 47.08828009 | J43: 79.89635721 | K43: 15.86092601 | L43: 12.66751921 | M43: 90.79457067 | N43: 78.08225463 | O43: 0.8761674936 | P43: 20 | Q43: 55 | R43: 40 | S43: 58.33333333 | T43: 50 | U43: 75 | V43: 50 | W43: 83.33333333
A44: 36 | D44: HI 1426 | E44: 91.62358094 | F44: 17.81831984 | G44: 16.33610583 | H44: 105.0895921 | I44: 38.19913823 | J44: 84.9758949 | K44: 17.22172047 | L44: 14.6340495 | M44: 104.8896962 | N44: 66.09775886 | O44: 0.8958101549 | P44: 36.66666667 | Q44: 50 | R44: 30 | S44: 53.33333333 | T44: 51.66666667 | U44: 80 | V44: 50 | W44: 83.33333333
A45: 37 | D45: HI 1469 | E45: 88.47879479 | F45: 17.71136597 | G45: 15.66150269 | H45: 100.7498939 | I45: 37.69472446 | J45: 83.49059172 | K45: 17.20050958 | L45: 14.36380232 | M45: 102.9526968 | N45: 58.69285226 | O45: 0.9171407498 | P45: 23.33333333 | Q45: 50 | R45: 33.33333333 | S45: 53.33333333 | T45: 55 | U45: 70 | V45: 50 | W45: 81.66666667
A46: 38 | D46: MA2210 | E46: 92.68880657 | F46: 17.75257316 | G46: 16.43906933 | H46: 105.7519527 | I46: 34.48362763 | J46: 82.67822771 | K46: 17.07681225 | L46: 14.105039 | M46: 101.0980081 | N46: 52.07603034 | O46: 0.8580193144 | P46: 31.66666667 | Q46: 50 | R46: 30 | S46: 50 | T46: 53.33333333 | U46: 73.33333333 | V46: 53.33333333 | W46: 78.33333333
A47: 39 | D47: MA2213 | E47: 85.21674148 | F47: 18.05771914 | G47: 15.3862561 | H47: 98.97924233 | I47: 45.68409976 | J47: 81.88431215 | K47: 17.0193472 | L47: 13.93640041 | M47: 99.88928935 | N47: 75.21319326 | O47: 0.9057694293 | P47: 20 | Q47: 56.66666667 | R47: 16.66666667 | S47: 60 | T47: 48.33333333 | U47: 78.33333333 | V47: 50 | W47: 85
A48: 40 | D48: MA4069 | E48: 94.41106201 | F48: 17.29374991 | G48: 16.303884 | H48: 104.8823103 | I48: 40.03369573 | J48: 86.18374683 | K48: 16.93427136 | L48: 14.59149038 | M48: 104.5846533 | N48: 57.4880189 | O48: 0.8949702029 | P48: 33.33333333 | Q48: 50 | R48: 40 | S48: 51.66666667 | T48: 51.66666667 | U48: 68.33333333 | V48: 53.33333333 | W48: 80
A49: 41 | D49: MA4075 | E49: 89.35050404 | F49: 17.54525142 | G49: 15.68818032 | H49: 100.9215102 | I49: 45.5022442 | J49: 84.42408163 | K49: 17.06951091 | L49: 14.40704101 | M49: 103.2626106 | N49: 60.53107145 | O49: 0.9183372909 | P49: 36.66666667 | Q49: 50 | R49: 26.66666667 | S49: 50 | T49: 51.66666667 | U49: 70 | V49: 51.66666667 | W49: 80
A50: LSD | E50: 3.894984099 | F50: 0.2409860838 | G50: 0.6891417119 | H50: 4.433224305 | I50: 11.32209749 | J50: 3.614083095 | K50: 0.3073164671 | L50: 0.6186918485 | M50: 4.434480014 | N50: 17.55776115
A51: CV | E51: 2.54781283 | F51: 0.7967879804 | G51: 2.579961524 | I51: 15.66769635 | J51: 2.512917232 | K51: 1.062763116 | L51: 2.54186408 | N51: 16.93751148
A52: p-value | E52: 2.502090124e-14 | F52: 1.386738298e-26 | G52: 3.985233344e-14 | I52: 0.0003124707087 | J52: 1.619338897e-17 | K52: 1.699468191e-20 | L52: 7.189835878e-19 | N52: 0.0002788882786

Sheet 109 2017 Yield (Untreat)
A1: 1 | B1: 2 | C1: 3 | D1: 4 | E1: 6 | F1: 7 | G1: 8 | H1: 9 | I1: 10 | J1: 12 | K1: 13 | L1: 17 | M1: 18 | N1: 20 | O1: 22 | P1: 27 | ALL1: 1
E2: 109 | F2: 109 | G2: 109 | H2: 109 | I2: 109 | J2: 109 | K2: 109 | L2: 109 | M2: 109 | N2: 109 | O2: 109 | P2: 109
A3: 109 2017 Yield (Untreat) | E3: Planter | F3: Rod | G3: Sukker | H3: Sukker | I3: Sukker | J3: Vh. jord | K3: Renhed | L3: K | M3: Na | N3: Amino-N | O3: IV-tal | P3: Stok
A4: Led | E4: Plant no | F4: Root | G4: Sugar | H4: Sugar | I4: Sugar | J4: Tare | K4: Cleaness | L4: K | M4: Na | N4: Amino-N | O4: IV-tal | P4: Bolters
A5: Entry | E5: 1
E7: 1000/ha | F7: t/ha | G7: % | H7: t/ha | I7: relative | J7: % | K7: % | L7: pr 100 g sukker | P7: ‰
A8: Gns. dyrkede* sorter | E8: 103.6947355 | F8: 82.25303714 | G8: 16.9733129 | H8: 13.95184659 | I8: 100 | J8: 10.24855092 | K8: 90.74544464 | L8: 38.17554166 | M8: 638.5073482 | N8: 65.17748907 | O8: 2.382946644 | P8: 0.1524254199
A9: 1 | B9: * | D9: Pasteur | E9: 103.613539 | F9: 80.32049469 | G9: 16.9640003 | H9: 13.61614738 | I9: 97.59387256 | J9: 10.45220168 | K9: 90.53690056 | L9: 41.4157566 | M9: 613.8474735 | N9: 60.22993492 | O9: 2.276789088 | P9: 1.371748779
A10: 2 | B10: * | D10: Lombok | E10: 104.4912839 | F10: 82.86878571 | G10: 16.60593715 | H10: 13.76488498 | I10: 98.65995082 | J10: 8.368329699 | K10: 92.27788255 | L10: 42.31425705 | M10: 653.1756187 | N10: 86.18169145 | O10: 2.654545575 | P10: 1e-05
A11: 3 | B11: * | D11: Criollo | E11: 104.503612 | F11: 79.53056354 | G11: 16.88142798 | H11: 13.41392524 | I11: 96.14444336 | J11: 15.79034731 | K11: 86.36298476 | L11: 40.56385821 | M11: 620.0657615 | N11: 57.37376773 | O11: 2.255626851 | P11: 1e-05
A12: 4 | B12: * | D12: Jollina KWS | E12: 101.229878 | F12: 79.78164356 | G12: 16.94503183 | H12: 13.51772598 | I12: 96.88843619 | J12: 9.659143941 | K12: 91.19166574 | L12: 45.77255259 | M12: 634.8343109 | N12: 53.74037374 | O12: 2.273611018 | P12: 1e-05
A13: 5 | B13: * | D13: Fairway | E13: 99.19655598 | F13: 80.89881663 | G13: 17.40689425 | H13: 14.08859829 | I13: 100.9801692 | J13: 7.601167592 | K13: 92.93579451 | L13: 46.04899112 | M13: 628.8221791 | N13: 68.06152868 | O13: 2.429108117 | P13: 1e-05
A14: 6 | B14: * | D14: Cantona KWS | E14: 104.9655346 | F14: 82.96185013 | G14: 17.43189471 | H14: 14.47252264 | I14: 103.7319508 | J14: 8.355863686 | K14: 92.28849884 | L14: 28.55651793 | M14: 614.1832604 | N14: 69.25268055 | O14: 2.31468177 | P14: 1e-05
A15: 7 | B15: * | D15: Starling | E15: 101.470848 | F15: 81.86536529 | G15: 16.99659317 | H15: 13.89544117 | I15: 99.59571358 | J15: 10.27013512 | K15: 90.68638565 | L15: 29.79810366 | M15: 628.1378394 | N15: 64.13901537 | O15: 2.317216721 | P15: 1e-05
A16: 8 | D16: Ragna KWS | E16: 104.7581908 | F16: 89.34090292 | G16: 16.76859674 | H16: 14.98419139 | I16: 107.3993417 | J16: 5.769845746 | K16: 94.54490483 | L16: 35.76285844 | M16: 597.1145499 | N16: 73.52862532 | O16: 2.328861892 | P16: 1e-05
A17: 9 | B17: * | D17: Daphna | E17: 105.792452 | F17: 92.88517909 | G17: 16.42450066 | H17: 15.24990984 | I17: 109.3038814 | J17: 9.276813217 | K17: 91.51072131 | L17: 32.35155036 | M17: 698.8638069 | N17: 73.8928837 | O17: 2.610441329 | P17: 1e-05
A18: 10 | C18: o | D18: Smilla KWS | E18: 107.5875459 | F18: 89.19325271 | G18: 17.16607731 | H18: 15.31768281 | I18: 109.7896448 | J18: 6.125641808 | K18: 94.22793426 | L18: 40.29638235 | M18: 673.2480243 | N18: 62.6230961 | O18: 2.453693688 | P18: 1e-05
A19: 11 | B19: * | D19: Degas | E19: 107.9889159 | F19: 79.16463558 | G19: 17.10353608 | H19: 13.54746377 | I19: 97.10158215 | J19: 12.46295607 | K19: 88.91816781 | L19: 36.75828742 | M19: 654.6358834 | N19: 53.72552551 | O19: 2.314499327 | P19: 1e-05
A20: 12 | C20: o | D20: Klimt | E20: 101.750887 | F20: 85.19631508 | G20: 17.04886693 | H20: 14.52470284 | I20: 104.1059529 | J20: 9.214943734 | K20: 91.56256148 | L20: 23.75690125 | M20: 548.1774957 | N20: 55.36250903 | O20: 2.001549694 | P20: 1e-05
A21: 13 | D21: Farina KWS | E21: 107.4815081 | F21: 90.0665424 | G21: 16.99619019 | H21: 15.2826446 | I21: 109.5385081 | J21: 7.494467837 | K21: 93.02804322 | L21: 48.56311727 | M21: 699.6947102 | N21: 82.49978393 | O21: 2.778085597 | P21: 1e-05
A22: 14 | C22: o | D22: Selma KWS | E22: 103.8635596 | F22: 93.64952174 | G22: 17.48604342 | H22: 16.36158813 | I22: 117.2718466 | J22: 7.899710914 | K22: 92.67865424 | L22: 30.86288323 | M22: 552.6918393 | N22: 51.79112105 | O22: 1.99372175 | P22: 1e-05
A23: 15 | C23: o | D23: Einar | E23: 101.3210996 | F23: 84.8475946 | G23: 17.22537147 | H23: 14.6046127 | I23: 104.6787077 | J23: 10.80679671 | K23: 90.24717162 | L23: 21.95186598 | M23: 552.8729064 | N23: 48.16076014 | O23: 1.983725109 | P23: 1.307196209
A24: 16 | D24: Bazin | E24: 104.2620327 | F24: 86.668101 | G24: 16.46927084 | H24: 14.2663445 | I24: 102.2541669 | J24: 11.51960747 | K24: 89.67032997 | L24: 45.40651054 | M24: 726.984691 | N24: 56.61081681 | O24: 2.53824523 | P24: 1e-05
A25: 17 | D25: Thorsen | E25: 98.46475745 | F25: 79.82261438 | G25: 16.44465975 | H25: 13.12768057 | I25: 94.0927818 | J25: 14.7519446 | K25: 87.14449271 | L25: 39.5096902 | M25: 738.2387718 | N25: 53.08073704 | O25: 2.503755699 | P25: 1e-05
A26: 18 | C26: o | D26: Jura | E26: 104.5438586 | F26: 82.40605602 | G26: 16.02282171 | H26: 13.20493643 | I26: 94.64651397 | J26: 12.25386942 | K26: 89.08378884 | L26: 52.07012815 | M26: 698.4026752 | N26: 56.04160194 | O26: 2.535908122 | P26: 1e-05
A27: 19 | C27: o | D27: Whisky | E27: 104.3059912 | F27: 82.61492423 | G27: 17.01828523 | H27: 14.06751285 | I27: 100.8290391 | J27: 9.739873277 | K27: 91.12458126 | L27: 31.5187118 | M27: 617.3355335 | N27: 61.29408252 | O27: 2.240644354 | P27: 1e-05
A28: 20 | C28: o | D28: Mustang | E28: 102.9588835 | F28: 80.91899232 | G28: 17.28778117 | H28: 13.96000948 | I28: 100.0585076 | J28: 11.77530109 | K28: 89.46520298 | L28: 41.17239815 | M28: 584.2438211 | N28: 71.33935241 | O28: 2.317695853 | P28: 1e-05
A29: 21 | C29: o | D29: Davinci | E29: 103.3191845 | F29: 78.01833993 | G29: 17.17009694 | H29: 13.40861107 | I29: 96.10635402 | J29: 5.013695054 | K29: 95.22567504 | L29: 55.52558361 | M29: 591.7163023 | N29: 68.40647635 | O29: 2.347243648 | P29: 1e-05
A30: 22 | C30: o | D30: Joker | E30: 102.4991406 | F30: 84.26514682 | G30: 17.09357343 | H30: 14.38304141 | I30: 103.0905932 | J30: 8.42926083 | K30: 92.22602758 | L30: 40.18608228 | M30: 593.0718661 | N30: 53.86127998 | O30: 2.155916851 | P30: 1e-05
A31: 23 | D31: 6K649 | E31: 97.92941324 | F31: 83.50103556 | G31: 17.74402525 | H31: 14.83409416 | I31: 106.3235183 | J31: 5.85005356 | K31: 94.47326349 | L31: 44.54453254 | M31: 595.0605918 | N31: 69.68603059 | O31: 2.333396928 | P31: 1.355020217
A32: 24 | D32: 6K680 | E32: 105.590611 | F32: 94.09642914 | G32: 16.76460921 | H32: 15.77486296 | I32: 113.0664881 | J32: 6.166586966 | K32: 94.19159347 | L32: 40.78963141 | M32: 597.5144877 | N32: 78.10313512 | O32: 2.434226847 | P32: 1e-05
A33: 25 | D33: 6K697 | E33: 102.0297486 | F33: 81.69628994 | G33: 17.6695628 | H33: 14.44287189 | I33: 103.5194288 | J33: 10.25926203 | K33: 90.69532859 | L33: 34.14154626 | M33: 578.1914834 | N33: 63.26582591 | O33: 2.198457125 | P33: 4.100532434
A34: 26 | D34: SV1722 | E34: 99.92099695 | F34: 81.98251986 | G34: 17.19578759 | H34: 14.10642543 | I34: 101.1079454 | J34: 6.476637569 | K34: 93.91731584 | L34: 25.21547746 | M34: 605.428 | N34: 67.05776415 | O34: 2.264085511 | P34: 1e-05
A35: 27 | D35: SV1723 | E35: 103.4933528 | F35: 79.66646818 | G35: 16.44116445 | H35: 13.10159069 | I35: 93.90578235 | J35: 8.483306804 | K35: 92.18008092 | L35: 53.01678244 | M35: 655.1244026 | N35: 72.14039846 | O35: 2.552589522 | P35: 1e-05
A36: 28 | D36: SV1740 | E36: 100.4665261 | F36: 85.87785986 | G36: 16.49902211 | H36: 14.17146177 | I36: 101.5740941 | J36: 11.91970239 | K36: 89.34977297 | L36: 47.63673939 | M36: 680.9871384 | N36: 57.19181568 | O36: 2.45030061 | P36: 1e-05
A37: 29 | D37: SV1758 | E37: 105.2684742 | F37: 85.59914765 | G37: 16.63913112 | H37: 14.22600172 | I37: 101.9650096 | J37: 7.867798706 | K37: 92.7060728 | L37: 26.84676614 | M37: 626.3772755 | N37: 53.83729488 | O37: 2.202932675 | P37: 1e-05
A38: 30 | D38: SV1765 | E38: 103.6744058 | F38: 80.3564293 | G38: 17.15949866 | H38: 13.78840442 | I38: 98.82852662 | J38: 5.726618767 | K38: 94.5835601 | L38: 35.91876478 | M38: 594.6533442 | N38: 57.42258558 | O38: 2.145975512 | P38: 1e-05
A39: 31 | D39: SV1800 | E39: 103.5736257 | F39: 79.91110932 | G39: 17.14547642 | H39: 13.70087085 | I39: 98.20112887 | J39: 10.36388549 | K39: 90.60935066 | L39: 34.55666416 | M39: 577.5491051 | N39: 49.66042296 | O39: 2.050678012 | P39: 1e-05
A40: 32 | D40: ST12651 | E40: 93.9784906 | F40: 79.53256617 | G40: 17.0978341 | H40: 13.60245596 | I40: 97.49573915 | J40: 6.686177576 | K40: 93.73285488 | L40: 22.67185376 | M40: 639.1372711 | N40: 63.42897348 | O40: 2.322269645 | P40: 1e-05
A41: 33 | D41: ST12664 | E41: 98.87631813 | F41: 78.57098013 | G41: 17.52207126 | H41: 13.77088575 | I41: 98.70296136 | J41: 12.23038466 | K41: 89.10243007 | L41: 32.16554661 | M41: 628.5916079 | N41: 73.97567736 | O41: 2.436996524 | P41: 1e-05
A42: 34 | D42: ST12668 | E42: 103.492962 | F42: 80.62250726 | G42: 17.03646757 | H42: 13.73991652 | I42: 98.48098914 | J42: 7.912327066 | K42: 92.66781907 | L42: 39.45859459 | M42: 596.7253824 | N42: 80.5161445 | O42: 2.430889563 | P42: 1e-05
A43: 35 | D43: ST15616 | E43: 101.4860764 | F43: 79.89635721 | G43: 15.86092601 | H43: 12.66751921 | I43: 90.79457067 | J43: 15.22053079 | K43: 86.79008794 | L43: 46.04579877 | M43: 732.7284841 | N43: 78.08225463 | O43: 2.772728943 | P43: 1e-05
A44: 36 | D44: HI 1426 | E44: 103.3510254 | F44: 84.9758949 | G44: 17.22172047 | H44: 14.6340495 | I44: 104.8896962 | J44: 6.851468075 | K44: 93.5878578 | L44: 38.81199736 | M44: 559.3358224 | N44: 66.09775886 | O44: 2.212139827 | P44: 1.291996331
A45: 37 | D45: HI 1469 | E45: 103.7419914 | F45: 83.49059172 | G45: 17.20050958 | H45: 14.36380232 | I45: 102.9526968 | J45: 8.199600428 | K45: 92.42178308 | L45: 42.26087114 | M45: 553.6465434 | N45: 58.69285226 | O45: 2.103686892 | P45: 1e-05
A46: 38 | D46: MA2210 | E46: 104.2215599 | F46: 82.67822771 | G46: 17.07681225 | H46: 14.105039 | I46: 101.0980081 | J46: 6.607923019 | K46: 93.80165861 | L46: 48.35259157 | M46: 554.9967687 | N46: 52.07603034 | O46: 2.048563435 | P46: 1e-05
A47: 39 | D47: MA2213 | E47: 105.842398 | F47: 81.88431215 | G47: 17.0193472 | H47: 13.93640041 | I47: 99.88928935 | J47: 5.062853492 | K47: 95.18111937 | L47: 57.40777598 | M47: 618.2239231 | N47: 75.21319326 | O47: 2.508296864 | P47: 1e-05
A48: 40 | D48: MA4069 | E48: 105.9223368 | F48: 86.18374683 | G48: 16.93427136 | H48: 14.59149038 | I48: 104.5846533 | J48: 5.233754883 | K48: 95.02654363 | L48: 49.99399303 | M48: 550.6178109 | N48: 57.4880189 | O48: 2.089678232 | P48: 1e-05
A49: 41 | D49: MA4075 | E49: 108.6297777 | F49: 84.42408163 | G49: 17.06951091 | H49: 14.40704101 | I49: 103.2626106 | J49: 6.85749896 | K49: 93.58257584 | L49: 48.94288226 | M49: 631.2511237 | N49: 60.53107145 | O49: 2.356408493 | P49: 1e-05
A50: LSD | E50: 6.208998876 | F50: 3.614083095 | G50: 0.3073164671 | H50: 0.6186918485 | J50: 5.904387413 | L50: 10.31774349 | M50: 34.08834158 | N50: 17.55776115 | O50: 0.2330983942 | P50: -
A51: CV | E51: 3.529907158 | F51: 2.512917232 | G51: 1.062763116 | H51: 2.54186408 | J51: 38.72078271 | L51: 14.92744672 | M51: 3.128413971 | N51: 16.93751148 | O51: 6.156263666 | P51: -
A52: p-value | E52: 0.01716907996 | F52: 1.619338897e-17 | G52: 1.699468191e-20 | H52: 7.189835878e-19 | J52: 0.01959820694 | L52: 6.420268993e-12 | M52: 4.399218953e-24 | N52: 0.0002788882786 | O52: 1.295002627e-11 | P52: -

Sheet 109 2017 Yield (Treated)
A1: 1 | B1: 2 | C1: 3 | D1: 4 | E1: 6 | F1: 7 | G1: 8 | H1: 9 | I1: 10 | J1: 12 | K1: 13 | L1: 17 | M1: 18 | N1: 20 | O1: 22 | P1: 27 | ALL1: 1
E2: 109 | F2: 109 | G2: 109 | H2: 109 | I2: 109 | J2: 109 | K2: 109 | L2: 109 | M2: 109 | N2: 109 | O2: 109 | P2: 109
A3: 109 2017 Yield (Treated) | E3: Planter | F3: Rod | G3: Sukker | H3: Sukker | I3: Sukker | J3: Vh. jord | K3: Renhed | L3: K | M3: Na | N3: Amino-N | O3: IV-tal | P3: Stok
A4: Led | E4: Plant no | F4: Root | G4: Sugar | H4: Sugar | I4: Sugar | J4: Tare | K4: Cleaness | L4: K | M4: Na | N4: Amino-N | O4: IV-tal | P4: Bolters
A5: Entry | E5: 1
E7: 1000/ha | F7: t/ha | G7: % | H7: t/ha | I7: relative | J7: % | K7: % | L7: pr 100 g sukker | P7: ‰
A8: Gns. dyrkede* sorter | E8: 104.537037 | F8: 89.22502215 | G8: 17.42545469 | H8: 15.54493219 | I8: 100 | J8: 10.71948725 | K8: 90.35073192 | L8: 24.8363608 | M8: 634.0321606 | N8: 43.43352071 | O8: 2.10654934 | P8: 0.1420006528
A9: 1 | B9: * | D9: Pasteur | E9: 105.8333333 | F9: 84.94799858 | G9: 17.48445758 | H9: 14.86180143 | I9: 95.60544394 | J9: 10.28850054 | K9: =100/(100+J9)*100 -> 90.67128441 | L9: 25.3925135 | M9: 594.0348807 | N9: 38.79920087 | O9: 1.954710785 | P9: 0.0001
A10: 2 | B10: * | D10: Lombok | E10: 108.75 | F10: 87.5537151 | G10: 17.08566492 | H10: 14.95277973 | I10: 96.19070414 | J10: 10.08270534 | K10: 90.84079074 | L10: 30.24934597 | M10: 621.8057675 | N10: 53.19541819 | O10: 2.190691198 | P10: 0.0001
A11: 3 | B11: * | D11: Criollo | E11: 105 | F11: 86.12373314 | G11: 17.46569013 | H11: 15.06750431 | I11: 96.92872333 | J11: 14.58631525 | K11: 87.27045615 | L11: 22.85817762 | M11: 622.5311053 | N11: 30.05740342 | O11: 1.942766228 | P11: 0.0001
A12: 4 | B12: * | D12: Jollina KWS | E12: 103.3333333 | F12: 90.27531909 | G12: 17.48264135 | H12: 15.78989016 | I12: 101.575806 | J12: 10.92183272 | K12: 90.15357712 | L12: 28.4236206 | M12: 633.8985445 | N12: 38.35799805 | O12: 2.071962186 | P12: 0.0001
A13: 5 | B13: * | D13: Fairway | E13: 97.5 | F13: 85.51141591 | G13: 17.73517137 | H13: 15.17628611 | I13: 97.62851279 | J13: 7.575702153 | K13: 92.95779437 | L13: 29.02341807 | M13: 654.4274238 | N13: 45.50156699 | O13: 2.189127315 | P13: 0.0001
A14: 6 | B14: * | D14: Cantona KWS | E14: 106.6666667 | F14: 92.90283541 | G14: 17.51354143 | H14: 16.29199481 | I14: 104.8058275 | J14: 8.878159063 | K14: 91.84578511 | L14: 18.72419234 | M14: 628.4661719 | N14: 50.53864644 | O14: 2.144965469 | P14: 0.0001
A15: 7 | B15: * | D15: Starling | E15: 99.16666667 | F15: 88.04408343 | G15: 17.696386 | H15: 15.58562984 | I15: 100.2618066 | J15: 8.922431564 | K15: 91.80845356 | L15: 17.07488828 | M15: 610.0820767 | N15: 43.82905458 | O15: 2.02016079 | P15: 0.0001
A16: 8 | D16: Ragna KWS | E16: 103.75 | F16: 96.96625831 | G16: 17.21260402 | H16: 16.69050413 | I16: 107.3694239 | J16: 7.154786848 | K16: 93.32294239 | L16: 23.50114633 | M16: 584.721066 | N16: 41.45252794 | O16: 1.955858572 | P16: 0.0001
A17: 9 | B17: * | D17: Daphna | E17: 107.0833333 | F17: 98.51123879 | G17: 16.70062082 | H17: 16.44509769 | I17: 105.7907329 | J17: 13.15218745 | K17: 88.37655043 | L17: 25.44471223 | M17: 696.5130048 | N17: 57.34524653 | O17: 2.399144519 | P17: 0.0001
A18: 10 | C18: o | D18: Smilla KWS | E18: 104.5833333 | F18: 94.47584277 | G18: 17.44960002 | H18: 16.47747141 | I18: 105.9989919 | J18: 12.00511285 | K18: 89.28163854 | L18: 29.62509382 | M18: 690.0498589 | N18: 45.39499823 | O18: 2.283458506 | P18: 0.0001
A19: 11 | B19: * | D19: Degas | E19: 107.5 | F19: 89.15485986 | G19: 17.66491862 | H19: 15.7334056 | I19: 101.2124428 | J19: 12.06755114 | K19: 89.23189539 | L19: 26.3363786 | M19: 644.5304703 | N19: 33.27715136 | O19: 2.04541557 | P19: 1.277205875
A20: 12 | C20: o | D20: Klimt | E20: 101.25 | F20: 92.23447109 | G20: 17.61038951 | H20: 16.24641612 | I20: 104.5126214 | J20: 15.73919325 | K20: 86.40115521 | L20: 18.98498836 | M20: 554.9332779 | N20: 35.82499815 | O20: 1.813894505 | P20: 0.0001
A21: 13 | D21: Farina KWS | E21: 105 | F21: 94.48057289 | G21: 17.42119582 | H21: 16.46309134 | I21: 105.9064854 | J21: 14.58429517 | K21: 87.27199469 | L21: 29.27430187 | M21: 634.9129454 | N21: 49.34939317 | O21: 2.18819218 | P21: 1.292056331
A22: 14 | C22: o | D22: Selma KWS | E22: 97.5 | F22: 97.14227653 | G22: 17.70961732 | H22: 17.2203364 | I22: 110.7778162 | J22: 7.270992745 | K22: 93.22184632 | L22: 24.21479192 | M22: 572.5746892 | N22: 52.23152369 | O22: 2.029983189 | P22: 0.0001
A23: 15 | C23: o | D23: Einar | E23: 102.0833333 | F23: 89.55714346 | G23: 17.72139324 | H23: 15.84831968 | I23: 101.951681 | J23: 8.662964693 | K23: 92.02767501 | L23: 17.33952235 | M23: 555.8061396 | N23: 37.46891576 | O23: 1.828258884 | P23: 1.307256209
A24: 16 | D24: Bazin | E24: 100 | F24: 87.523541 | G24: 17.21614483 | H24: 15.06103901 | I24: 96.88713227 | J24: 7.529357086 | K24: 92.99785911 | L24: 36.29198481 | M24: 698.0431454 | N24: 42.2299859 | O24: 2.297078066 | P24: 0.0001
A25: 17 | D25: Thorsen | E25: 101.25 | F25: 88.69708055 | G25: 17.07336843 | H25: 15.12665674 | I25: 97.30924883 | J25: 14.12323348 | K25: 87.62457648 | L25: 31.96318113 | M25: 697.9812382 | N25: 45.66071859 | O25: 2.308836489 | P25: 2.817035188
A26: 18 | C26: o | D26: Jura | E26: 105.4166667 | F26: 90.41504532 | G26: 16.77969551 | H26: 15.18567708 | I26: 97.68892461 | J26: 11.489185 | K26: 89.69479865 | L26: 37.51879315 | M26: 693.0168606 | N26: 48.85482799 | O26: 2.349265361 | P26: 0.0001
A27: 19 | C27: o | D27: Whisky | E27: 100 | F27: 88.97646258 | G27: 17.75910529 | H27: 15.7909674 | I27: 101.5827358 | J27: 9.639059497 | K27: 91.20837087 | L27: 19.05102029 | M27: 595.1286885 | N27: 33.47128324 | O27: 1.895069758 | P27: 0.0001
A28: 20 | C28: o | D28: Mustang | E28: 102.9166667 | F28: 87.89824957 | G28: 17.64107496 | H28: 15.49671182 | I28: 99.68980008 | J28: 13.18618071 | K28: 88.35000825 | L28: 28.14229783 | M28: 568.9270809 | N28: 33.83755681 | O28: 1.858424286 | P28: 0.0001
A29: 21 | C29: o | D29: Davinci | E29: 102.5 | F29: 85.00216811 | G29: 18.01009831 | H29: 15.29441364 | I29: 98.38842306 | J29: 9.671969761 | K29: 91.18100114 | L29: 34.49954346 | M29: 604.92859 | N29: 45.04838993 | O29: 2.078335195 | P29: 0.0001
A30: 22 | C30: o | D30: Joker | E30: 100.4166667 | F30: 92.67689041 | G30: 17.51188654 | H30: 16.22493242 | I30: 104.3744175 | J30: 8.751852818 | K30: 91.95245636 | L30: 30.69407201 | M30: 568.3232274 | N30: 41.72097119 | O30: 1.95559314 | P30: 1.322817989
A31: 23 | D31: 6K649 | E31: 102.0833333 | F31: 94.35270833 | G31: 18.10725359 | H31: 17.05860697 | I31: 109.7374164 | J31: 8.093705426 | K31: 92.51232494 | L31: 27.20225848 | M31: 571.9054006 | N31: 32.29013241 | O31: 1.848146821 | P31: 0.0001
A32: 24 | D32: 6K680 | E32: 107.0833333 | F32: 102.3478287 | G32: 16.96758322 | H32: 17.34354712 | I32: 111.5704264 | J32: 8.559879742 | K32: 92.11506151 | L32: 28.66501656 | M32: 589.6370841 | N32: 42.32663273 | O32: 1.987375019 | P32: 0.0001
A33: 25 | D33: 6K697 | E33: 99.16666667 | F33: 89.52708129 | G33: 18.38703596 | H33: 16.47411314 | I33: 105.9773883 | J33: 7.617603035 | K33: 92.92160128 | L33: 23.13204808 | M33: 541.1427436 | N33: 38.63621497 | O33: 1.82138625 | P33: 1.424568091
A34: 26 | D34: SV1722 | E34: 99.58333333 | F34: 91.38715404 | G34: 17.86242001 | H34: 16.33960705 | I34: 105.1121153 | J34: 7.505102996 | K34: 93.01884024 | L34: 18.86723824 | M34: 600.3436289 | N34: 38.57299171 | O34: 1.957861477 | P34: 0.0001
A35: 27 | D35: SV1723 | E35: 102.5 | F35: 87.23003381 | G35: 16.90146384 | H35: 14.73198525 | I35: 94.77034107 | J35: 11.14336881 | K35: 89.97387885 | L35: 37.5461544 | M35: 643.928513 | N35: 51.68020299 | O35: 2.24933855 | P35: 0.0001
A36: 28 | D36: SV1740 | E36: 101.6666667 | F36: 90.43132755 | G36: 16.84835889 | H36: 15.21743505 | I36: 97.8932225 | J36: 12.12267499 | K36: 89.18802553 | L36: 32.28248655 | M36: 674.5846037 | N36: 33.89447757 | O36: 2.146654423 | P36: 0.0001
A37: 29 | D37: SV1758 | E37: 104.1666667 | F37: 92.1046814 | G37: 17.17990257 | H37: 15.80734259 | I37: 101.6880768 | J37: 8.671775222 | K37: 92.02021389 | L37: 21.92945851 | M37: 631.1889413 | N37: 33.36846003 | O37: 1.985069093 | P37: 0.0001
A38: 30 | D38: SV1765 | E38: 105.8333333 | F38: 87.9196298 | G38: 17.64637421 | H38: 15.52040432 | I38: 99.84221307 | J38: 11.87298351 | K38: 89.38708602 | L38: 24.17564733 | M38: 586.0795632 | N38: 40.81119623 | O38: 1.954800483 | P38: 0.0001
A39: 31 | D39: SV1800 | E39: 104.1666667 | F39: 90.23244411 | G39: 17.71798679 | H39: 15.98655256 | I39: 102.8409283 | J39: 8.62455543 | K39: 92.06021567 | L39: 26.81178366 | M39: 610.7991835 | N39: 38.95304965 | O39: 2.008614404 | P39: 0.0001
A40: 32 | D40: ST12651 | E40: 96.25 | F40: 88.69539322 | G40: 17.17093357 | H40: 15.22101007 | I40: 97.91622044 | J40: 12.62440213 | K40: 88.79070442 | L40: 17.99549385 | M40: 629.7353108 | N40: 37.93117717 | O40: 2.01111121 | P40: 0.0001
A41: 33 | D41: ST12664 | E41: 100.8333333 | F41: 82.93220819 | G41: 17.83427313 | H41: 14.79924625 | I41: 95.2030287 | J41: 10.66197734 | K41: 90.36527487 | L41: 23.29512645 | M41: 612.9424748 | N41: 47.56481669 | O41: 2.088416349 | P41: 2.710463531
A42: 34 | D42: ST12668 | E42: 103.3333333 | F42: 88.06795662 | G42: 17.96109313 | H42: 15.8238896 | I42: 101.7945232 | J42: 9.662819954 | K42: 91.1886089 | L42: 22.17787568 | M42: 616.1750895 | N42: 48.07890921 | O42: 2.094299522 | P42: 1.307256209
A43: 35 | D43: ST15616 | E43: 103.75 | F43: 87.71781895 | G43: 16.49463791 | H43: 14.45787398 | I43: 93.00699295 | J43: 13.19022985 | K43: 88.34684772 | L43: 30.11731169 | M43: 724.1542921 | N43: 47.08828009 | O43: 2.388049199 | P43: 1.355080217
A44: 36 | D44: HI 1426 | E44: 104.5833333 | F44: 91.62358094 | G44: 17.81831984 | H44: 16.33610583 | I44: 105.0895921 | J44: 14.69996289 | K44: 87.18398636 | L44: 22.78558483 | M44: 554.2773955 | N44: 38.19913823 | O44: 1.859708955 | P44: 0.0001
A45: 37 | D45: HI 1469 | E45: 102.9166667 | F45: 88.47879479 | G45: 17.71136597 | H45: 15.66150269 | I45: 100.7498939 | J45: 12.12889082 | K45: 89.18308142 | L45: 25.90618723 | M45: 538.8386759 | N45: 37.69472446 | O45: 1.818166643 | P45: 0.0001
A46: 38 | D46: MA2210 | E46: 104.1666667 | F46: 92.68880657 | G46: 17.75257316 | H46: 16.43906933 | I46: 105.7519527 | J46: 13.03936955 | K46: 88.46475383 | L46: 26.6401667 | M46: 547.8386985 | N46: 34.48362763 | O46: 1.809539443 | P46: 0.0001
A47: 39 | D47: MA2213 | E47: 104.5833333 | F47: 85.21674148 | G47: 18.05771914 | H47: 15.3862561 | I47: 98.97924233 | J47: 10.80245553 | K47: 90.25070746 | L47: 29.74670066 | M47: 593.8898164 | N47: 45.68409976 | O47: 2.052002202 | P47: 0.0001
A48: 40 | D48: MA4069 | E48: 106.25 | F48: 94.41106201 | G48: 17.29374991 | H48: 16.303884 | I48: 104.8823103 | J48: 9.472164942 | K48: 91.34742156 | L48: 26.84229604 | M48: 572.8065223 | N48: 40.03369573 | O48: 1.925215793 | P48: 1.307256209
A49: 41 | D49: MA4075 | E49: 104.1666667 | F49: 89.35050404 | G49: 17.54525142 | H49: 15.68818032 | I49: 100.9215102 | J49: 7.261527689 | K49: 93.23007247 | L49: 35.37734773 | M49: 645.40428 | N49: 45.5022442 | O49: 2.184093298 | P49: 0.0001
A50: LSD | E50: 6.489591629 | F50: 3.894984099 | G50: 0.2409860838 | H50: 0.6891417119 | J50: 5.596066027 | L50: 5.891145191 | M50: 24.41328208 | N50: 11.32209749 | O50: 0.1466827463 | P50: -
A51: CV | E51: 3.876109671 | F51: 2.54781283 | G51: 0.7967879804 | H51: 2.579961524 | J51: 30.85280099 | L51: 12.56921231 | M51: 2.264648309 | N51: 15.66769635 | O51: 4.184451387 | P51: -
A52: p-value | E52: 0.03675353367 | F52: 2.502090124e-14 | G52: 1.386738298e-26 | H52: 3.985233344e-14 | J52: 0.1008890537 | L52: 9.584399541e-12 | M52: 1.662363821e-30 | N52: 0.0003124707087 | O52: 8.823881612e-17 | P52: -

Sheet 109 2017 Leaf diseases
A1: 109-2017 | E1: Untreated | Y1: Treated 2x0,50 l/ha Opera
A2: Led | D2: Sort
A3: Entry | D3: Variety | E3: Leaf disease attack, escriptive scale 0-100 | Y3: Leaf disease attack, escriptive scale 0-100
E4: mel1 | F4: rust1 | G4: ram1 | H4: Cer1 | I4: mel2 | J4: rust2 | K4: ram2 | L4: Cer2 | M4: mel3 | N4: rust3 | O4: ram3 | P4: Cer3 | Q4: mel4 | R4: rust4 | S4: ram4 | T4: Cer4 | U4: mel5 | V4: rust5 | W4: ram5 | X4: Cer5 | Y4: mel1 | Z4: rust1 | AA4: ram1 | AB4: Cer1 | AC4: mel2 | AD4: rust2 | AE4: ram2 | AF4: Cer2 | AG4: mel3 | AH4: rust3 | AI4: ram3 | AJ4: Cer3 | AK4: mel4 | AL4: rust4 | AM4: ram4 | AN4: Cer4 | AO4: mel5 | AP4: rust5 | AQ4: ram5 | AR4: Cer5
E5: T1 | I5: T1+15-20 | M5: T2+15-20 | Q5: T2+30-40 | U5: T2+50-60 | Y5: T1 | AC5: T1+15-20 | AG5: T2+15-20 | AK5: T2+30-40 | AO5: T2+50-60
A7: Gns. dyrkede* sorter | E7: =AVERAGE(IF($B$8:$B$48="*",E8:E48)) -> 0 | F7: =AVERAGE(IF($B$8:$B$48="*",F8:F48)) -> 0.8888888889 | G7: =AVERAGE(IF($B$8:$B$48="*",G8:G48)) -> 0.7777777778 | H7: =AVERAGE(IF($B$8:$B$48="*",H8:H48)) -> 0 | I7: =AVERAGE(IF($B$8:$B$48="*",I8:I48)) -> 0 | J7: =AVERAGE(IF($B$8:$B$48="*",J8:J48)) -> 4.296296296 | K7: =AVERAGE(IF($B$8:$B$48="*",K8:K48)) -> 15.55555556 | L7: =AVERAGE(IF($B$8:$B$48="*",L8:L48)) -> 1.777777778 | M7: =AVERAGE(IF($B$8:$B$48="*",M8:M48)) -> 14 | N7: =AVERAGE(IF($B$8:$B$48="*",N8:N48)) -> 37.22222222 | O7: =AVERAGE(IF($B$8:$B$48="*",O8:O48)) -> 53.07407407 | P7: =AVERAGE(IF($B$8:$B$48="*",P8:P48)) -> 0.5555555556 | Q7: =AVERAGE(IF($B$8:$B$48="*",Q8:Q48)) -> 33.7037037 | R7: =AVERAGE(IF($B$8:$B$48="*",R8:R48)) -> 48.33333333 | S7: =AVERAGE(IF($B$8:$B$48="*",S8:S48)) -> 68.51851852 | T7: =AVERAGE(IF($B$8:$B$48="*",T8:T48)) -> 2.602574611e-16 | U7: =AVERAGE(IF($B$8:$B$48="*",U8:U48)) -> 0 | V7: =AVERAGE(IF($B$8:$B$48="*",V8:V48)) -> 52.59259259 | W7: =AVERAGE(IF($B$8:$B$48="*",W8:W48)) -> 79.44444444 | X7: =AVERAGE(IF($B$8:$B$48="*",X8:X48)) -> -1.743541654e-15 | Y7: =AVERAGE(IF($B$8:$B$48="*",Y8:Y48)) -> 0 | Z7: =AVERAGE(IF($B$8:$B$48="*",Z8:Z48)) -> 1.185185185 | AA7: =AVERAGE(IF($B$8:$B$48="*",AA8:AA48)) -> 0.9259259259 | AB7: =AVERAGE(IF($B$8:$B$48="*",AB8:AB48)) -> 0 | AC7: =AVERAGE(IF($B$8:$B$48="*",AC8:AC48)) -> 0 | AD7: =AVERAGE(IF($B$8:$B$48="*",AD8:AD48)) -> 1.555555556 | AE7: =AVERAGE(IF($B$8:$B$48="*",AE8:AE48)) -> 13.96296296 | AF7: =AVERAGE(IF($B$8:$B$48="*",AF8:AF48)) -> 0.03703703704 | AG7: =AVERAGE(IF($B$8:$B$48="*",AG8:AG48)) -> 0 | AH7: =AVERAGE(IF($B$8:$B$48="*",AH8:AH48)) -> 14.77777778 | AI7: =AVERAGE(IF($B$8:$B$48="*",AI8:AI48)) -> 30.74074074 | AJ7: =AVERAGE(IF($B$8:$B$48="*",AJ8:AJ48)) -> 0 | AK7: =AVERAGE(IF($B$8:$B$48="*",AK8:AK48)) -> 0.7407407407 | AL7: =AVERAGE(IF($B$8:$B$48="*",AL8:AL48)) -> 27.96296296 | AM7: =AVERAGE(IF($B$8:$B$48="*",AM8:AM48)) -> 46.11111111 | AN7: =AVERAGE(IF($B$8:$B$48="*",AN8:AN48)) -> 0 | AO7: =AVERAGE(IF($B$8:$B$48="*",AO8:AO48)) -> 0 | AP7: =AVERAGE(IF($B$8:$B$48="*",AP8:AP48)) -> 37.22222222 | AQ7: =AVERAGE(IF($B$8:$B$48="*",AQ8:AQ48)) -> 50 | AR7: =AVERAGE(IF($B$8:$B$48="*",AR8:AR48)) -> 1.851851852
A8: 21 | C8: o | D8: Davinci | E8: 0 | F8: 0.6666666667 | G8: 2.333333333 | H8: 0 | I8: 0 | J8: 6 | K8: 33.33333333 | L8: -9.184276603e-16 | M8: 4.750540239e-15 | N8: 33.33333333 | O8: 72.66666667 | P8: -1.35221695e-15 | Q8: 40 | R8: 50 | S8: 85 | T8: 5.980052608e-17 | U8: 0 | V8: 46.66666667 | W8: 85 | X8: -1.595511917e-15 | Y8: 0 | Z8: 1 | AA8: 1.333333333 | AB8: 0 | AC8: 0 | AD8: 5.333333333 | AE8: 23.33333333 | AF8: -5.28006458e-17 | AG8: 0 | AH8: 11 | AI8: 42.66666667 | AJ8: 0 | AK8: 3.381419983e-16 | AL8: 10 | AM8: 55 | AN8: 0 | AO8: 0 | AP8: 16.66666667 | AQ8: 60 | AR8: 4.196991785e-17
A9: 36 | D9: HI 1426 | E9: 0 | F9: 1.666666667 | G9: 2.333333333 | H9: 0 | I9: 0 | J9: 10.66666667 | K9: 24.66666667 | L9: -9.184276603e-16 | M9: 10 | N9: 33.33333333 | O9: 70 | P9: 3.333333333 | Q9: 36.66666667 | R9: 51.66666667 | S9: 80 | T9: 5.980052608e-17 | U9: 0 | V9: 50 | W9: 83.33333333 | X9: -1.595511917e-15 | Y9: 0 | Z9: 1 | AA9: 2 | AB9: 0 | AC9: 0 | AD9: 5.333333333 | AE9: 15 | AF9: 1.666666667 | AG9: 0 | AH9: 14.33333333 | AI9: 26.66666667 | AJ9: 0 | AK9: 5.601866032e-16 | AL9: 36.66666667 | AM9: 50 | AN9: 0 | AO9: 0 | AP9: 30 | AQ9: 53.33333333 | AR9: 1.529922203e-16
A10: 20 | C10: o | D10: Mustang | E10: 0 | F10: 0.6666666667 | G10: 0.6666666667 | H10: 0 | I10: 0 | J10: 1.666666667 | K10: 25 | L10: 1.666666667 | M10: 21.66666667 | N10: 36.66666667 | O10: 70 | P10: 13.33333333 | Q10: 33.33333333 | R10: 50 | S10: 80 | T10: 3.333333333 | U10: 0 | V10: 58.33333333 | W10: 83.33333333 | X10: -1.595511917e-15 | Y10: 0 | Z10: 1.333333333 | AA10: 0.6666666667 | AB10: 0 | AC10: 0 | AD10: 11 | AE10: 21.33333333 | AF10: 2.710505431e-18 | AG10: 0 | AH10: 11.66666667 | AI10: 26.66666667 | AJ10: 0 | AK10: 3.381419983e-16 | AL10: 10 | AM10: 53.33333333 | AN10: 0 | AO10: 0 | AP10: 30 | AQ10: 43.33333333 | AR10: 4.196991785e-17
A11: 39 | D11: MA2213 | E11: 0 | F11: 0.6666666667 | G11: 1.333333333 | H11: 0 | I11: 0 | J11: 3.666666667 | K11: 29.66666667 | L11: -6.963830554e-16 | M11: 15 | N11: 33.33333333 | O11: 70 | P11: -1.130172345e-15 | Q11: 36.66666667 | R11: 48.33333333 | S11: 78.33333333 | T11: 5.980052608e-17 | U11: 0 | V11: 50 | W11: 85 | X11: -1.151422707e-15 | Y11: 0 | Z11: 1 | AA11: 2.333333333 | AB11: 0 | AC11: 0 | AD11: 1.666666667 | AE11: 36.66666667 | AF11: -5.28006458e-17 | AG11: 0 | AH11: 1.666666667 | AI11: 46.66666667 | AJ11: 0 | AK11: 3.333333333 | AL11: 20 | AM11: 56.66666667 | AN11: 0 | AO11: 0 | AP11: 16.66666667 | AQ11: 60 | AR11: -1.430672529e-16
A12: 16 | D12: Bazin | E12: 0 | F12: 0.6666666667 | G12: 1.666666667 | H12: 0 | I12: 0 | J12: 2.90956495e-15 | K12: 28.33333333 | L12: -1.140472265e-15 | M12: 16.66666667 | N12: 30 | O12: 61.66666667 | P12: -1.574261554e-15 | Q12: 20 | R12: 48.33333333 | S12: 78.33333333 | T12: 1.800746871e-16 | U12: 0 | V12: 50 | W12: 83.33333333 | X12: -2.927779547e-15 | Y12: 0 | Z12: 1 | AA12: 0.6666666667 | AB12: 0 | AC12: 0 | AD12: 0.6666666667 | AE12: 16 | AF12: 3.046608105e-17 | AG12: 0 | AH12: 16.66666667 | AI12: 26.66666667 | AJ12: 0 | AK12: 7.822312081e-16 | AL12: 16.66666667 | AM12: 51.66666667 | AN12: 0 | AO12: 0 | AP12: 13.33333333 | AQ12: 50 | AR12: 1.529922203e-16
A13: 4 | B13: * | D13: Jollina KWS | E13: 0 | F13: 1.333333333 | G13: 1.666666667 | H13: 0 | I13: 0 | J13: 9.333333333 | K13: 16.66666667 | L13: -1.140472265e-15 | M13: 1.096778918e-14 | N13: 43.33333333 | O13: 50 | P13: -1.796306159e-15 | Q13: 36.66666667 | R13: 50 | S13: 76.66666667 | T13: 3.466081408e-16 | U13: 0 | V13: 51.66666667 | W13: 81.66666667 | X13: -2.927779547e-15 | Y13: 0 | Z13: 0.6666666667 | AA13: 1 | AB13: 0 | AC13: 0 | AD13: 6 | AE13: 16 | AF13: 8.597723228e-17 | AG13: 0 | AH13: 20 | AI13: 33.33333333 | AJ13: 0 | AK13: 3.381419983e-16 | AL13: 40 | AM13: 43.33333333 | AN13: 0 | AO13: 0 | AP13: 43.33333333 | AQ13: 46.66666667 | AR13: 3.750368252e-16
A14: 18 | C14: o | D14: Jura | E14: 0 | F14: 1.666666667 | G14: 0.3333333333 | H14: 0 | I14: 0 | J14: 9.333333333 | K14: 30 | L14: 2.666666667 | M14: 15 | N14: 34.66666667 | O14: 68.33333333 | P14: -1.574261554e-15 | Q14: 36.66666667 | R14: 50 | S14: 76.66666667 | T14: 6.666666667 | U14: 0 | V14: 50 | W14: 85 | X14: -2.927779547e-15 | Y14: 0 | Z14: 0.6666666667 | AA14: 1.333333333 | AB14: 0 | AC14: 0 | AD14: 3.994200803e-16 | AE14: 16.66666667 | AF14: 3.046608105e-17 | AG14: 0 | AH14: 13.33333333 | AI14: 38.33333333 | AJ14: 0 | AK14: 7.822312081e-16 | AL14: 20 | AM14: 56.66666667 | AN14: 0 | AO14: 0 | AP14: 20 | AQ14: 58.33333333 | AR14: 1.529922203e-16
A15: 34 | D15: ST12668 | E15: 0 | F15: 0.3333333333 | G15: 2.333333333 | H15: 0 | I15: 0 | J15: 4.666666667 | K15: 12 | L15: -9.184276603e-16 | M15: 26.66666667 | N15: 35 | O15: 73.33333333 | P15: -1.574261554e-15 | Q15: 40 | R15: 58.33333333 | S15: 75 | T15: 5.980052608e-17 | U15: 0 | V15: 53.33333333 | W15: 81.66666667 | X15: -1.595511917e-15 | Y15: 0 | Z15: 1 | AA15: 0.6666666667 | AB15: 0 | AC15: 0 | AD15: 6.666666667 | AE15: 14.33333333 | AF15: -2.504507018e-17 | AG15: 0 | AH15: 15 | AI15: 23.33333333 | AJ15: 0 | AK15: 3.381419983e-16 | AL15: 43.33333333 | AM15: 40 | AN15: 0 | AO15: 0 | AP15: 36.66666667 | AQ15: 50 | AR15: 4.196991785e-17
A16: 1 | B16: * | D16: Pasteur | E16: 0 | F16: 0.6666666667 | G16: 1.666666667 | H16: 0 | I16: 0 | J16: 5.333333333 | K16: 23.33333333 | L16: -2.522938455e-16 | M16: 23.33333333 | N16: 33.33333333 | O16: 61.66666667 | P16: -1.574261554e-15 | Q16: 36.66666667 | R16: 50 | S16: 75 | T16: 1.800746871e-16 | U16: 0 | V16: 53.33333333 | W16: 83.33333333 | X16: -2.632442875e-16 | Y16: 0 | Z16: 1 | AA16: 0.6666666667 | AB16: 0 | AC16: 0 | AD16: 1.333333333 | AE16: 16 | AF16: -1.915785239e-16 | AG16: 0 | AH16: 13.33333333 | AI16: 33.33333333 | AJ16: 0 | AK16: -1.059472116e-16 | AL16: 15 | AM16: 48.33333333 | AN16: 0 | AO16: 0 | AP16: 26.66666667 | AQ16: 53.33333333 | AR16: -1.800746871e-16
A17: 35 | D17: ST15616 | E17: 0 | F17: 0.6666666667 | G17: 1.584019374e-16 | H17: 0 | I17: 0 | J17: 4.666666667 | K17: 36.66666667 | L17: -9.184276603e-16 | M17: 16.66666667 | N17: 35 | O17: 56.66666667 | P17: -1.574261554e-15 | Q17: 30 | R17: 50 | S17: 75 | T17: 5.980052608e-17 | U17: 0 | V17: 50 | W17: 83.33333333 | X17: -1.595511917e-15 | Y17: 0 | Z17: 2.333333333 | AA17: 1 | AB17: 0 | AC17: 0 | AD17: 1.333333333 | AE17: 26.66666667 | AF17: -2.504507018e-17 | AG17: 0 | AH17: 16.66666667 | AI17: 36.66666667 | AJ17: 0 | AK17: 3.381419983e-16 | AL17: 20 | AM17: 55 | AN17: 0 | AO17: 0 | AP17: 40 | AQ17: 58.33333333 | AR17: 4.196991785e-17
A18: 38 | D18: MA2210 | E18: 0 | F18: 2.666666667 | G18: 1.666666667 | H18: 0 | I18: 0 | J18: 21.66666667 | K18: 23.33333333 | L18: -6.963830554e-16 | M18: 16.66666667 | N18: 43.33333333 | O18: 63.33333333 | P18: -1.130172345e-15 | Q18: 40 | R18: 53.33333333 | S18: 73.33333333 | T18: 5.980052608e-17 | U18: 0 | V18: 53.33333333 | W18: 78.33333333 | X18: -1.151422707e-15 | Y18: 0 | Z18: 2.333333333 | AA18: 0.6666666667 | AB18: 0 | AC18: 0 | AD18: 4.666666667 | AE18: 13.66666667 | AF18: -5.28006458e-17 | AG18: 0 | AH18: 16.66666667 | AI18: 40 | AJ18: 0 | AK18: 3.333333333 | AL18: 31.66666667 | AM18: 50 | AN18: 0 | AO18: 0 | AP18: 30 | AQ18: 50 | AR18: 3.333333333
A19: 2 | B19: * | D19: Lombok | E19: 0 | F19: 1 | G19: 0.6666666667 | H19: 0 | I19: 0 | J19: 2.333333333 | K19: 21.66666667 | L19: 1.666666667 | M19: 21.66666667 | N19: 36.66666667 | O19: 63.33333333 | P19: -1.130172345e-15 | Q19: 40 | R19: 48.33333333 | S19: 73.33333333 | T19: 1.800746871e-16 | U19: 0 | V19: 53.33333333 | W19: 83.33333333 | X19: -2.632442875e-16 | Y19: 0 | Z19: 1 | AA19: 1 | AB19: 0 | AC19: 0 | AD19: 0.6666666667 | AE19: 16 | AF19: -8.055622142e-17 | AG19: 0 | AH19: 15 | AI19: 41.66666667 | AJ19: 0 | AK19: -1.059472116e-16 | AL19: 45 | AM19: 51.66666667 | AN19: 0 | AO19: 0 | AP19: 33.33333333 | AQ19: 56.66666667 | AR19: -1.800746871e-16
A20: 17 | D20: Thorsen | E20: 0 | F20: 0.3333333333 | G20: 0.3333333333 | H20: 0 | I20: 0 | J20: 3.333333333 | K20: 21.66666667 | L20: -1.140472265e-15 | M20: 11.66666667 | N20: 46.66666667 | O20: 51.66666667 | P20: -1.574261554e-15 | Q20: 33.33333333 | R20: 58.33333333 | S20: 73.33333333 | T20: 1.800746871e-16 | U20: 0 | V20: 53.33333333 | W20: 81.66666667 | X20: -2.927779547e-15 | Y20: 0 | Z20: 1.333333333 | AA20: 0.3333333333 | AB20: 0 | AC20: 0 | AD20: 2.666666667 | AE20: 13.66666667 | AF20: 3.046608105e-17 | AG20: 0 | AH20: 6.666666667 | AI20: 33.33333333 | AJ20: 0 | AK20: 7.822312081e-16 | AL20: 26.66666667 | AM20: 48.33333333 | AN20: 0 | AO20: 0 | AP20: 23.33333333 | AQ20: 50 | AR20: 1.529922203e-16
A21: 7 | B21: * | D21: Starling | E21: 0 | F21: 1.666666667 | G21: 0.3333333333 | H21: 0 | I21: 0 | J21: 1.666666667 | K21: 15 | L21: -1.140472265e-15 | M21: 23.66666667 | N21: 33.33333333 | O21: 55 | P21: -1.796306159e-15 | Q21: 40 | R21: 55 | S21: 71.66666667 | T21: 3.466081408e-16 | U21: 0 | V21: 50 | W21: 83.33333333 | X21: -2.927779547e-15 | Y21: 0 | Z21: 1.333333333 | AA21: 1 | AB21: 0 | AC21: 0 | AD21: 2.333333333 | AE21: 23.33333333 | AF21: 3.046608105e-17 | AG21: 0 | AH21: 16.66666667 | AI21: 31.66666667 | AJ21: 0 | AK21: 3.381419983e-16 | AL21: 23.33333333 | AM21: 50 | AN21: 0 | AO21: 0 | AP21: 40 | AQ21: 51.66666667 | AR21: 3.750368252e-16
A22: 10 | C22: o | D22: Smilla KWS | E22: 0 | F22: 1.666666667 | G22: 0.6666666667 | H22: 0 | I22: 0 | J22: 2.666666667 | K22: 21 | L22: 1 | M22: 16.66666667 | N22: 36.66666667 | O22: 55 | P22: 1.666666667 | Q22: 30 | R22: 46.66666667 | S22: 71.66666667 | T22: 2.910969895e-16 | U22: 0 | V22: 46.66666667 | W22: 76.66666667 | X22: -2.927779547e-15 | Y22: 0 | Z22: 1 | AA22: 1.666666667 | AB22: 0 | AC22: 0 | AD22: 1 | AE22: 6.333333333 | AF22: 1.666666667 | AG22: 0 | AH22: 19.33333333 | AI22: 40 | AJ22: 0 | AK22: 3.381419983e-16 | AL22: 36.66666667 | AM22: 46.66666667 | AN22: 0 | AO22: 0 | AP22: 33.33333333 | AQ22: 50 | AR22: 3.750368252e-16
A23: 5 | B23: * | D23: Fairway | E23: 0 | F23: 0.6666666667 | G23: 0.6666666667 | H23: 0 | I23: 0 | J23: 1.666666667 | K23: 14.33333333 | L23: 1 | M23: 21.66666667 | N23: 30 | O23: 56.66666667 | P23: -2.018350764e-15 | Q23: 26.66666667 | R23: 51.66666667 | S23: 71.66666667 | T23: 2.910969895e-16 | U23: 0 | V23: 55 | W23: 76.66666667 | X23: -2.927779547e-15 | Y23: 0 | Z23: 1 | AA23: 1.666666667 | AB23: 0 | AC23: 0 | AD23: -4.887583394e-16 | AE23: 15.33333333 | AF23: 8.597723228e-17 | AG23: 0 | AH23: 9.333333333 | AI23: 26.66666667 | AJ23: 0 | AK23: 6.666666667 | AL23: 35 | AM23: 50 | AN23: 0 | AO23: 0 | AP23: 40 | AQ23: 50 | AR23: 3.750368252e-16
A24: 41 | D24: MA4075 | E24: 0 | F24: 1 | G24: 0.6666666667 | H24: 0 | I24: 0 | J24: 4.666666667 | K24: 31.66666667 | L24: 1.666666667 | M24: 6.666666667 | N24: 26.66666667 | O24: 63.33333333 | P24: 1.333333333 | Q24: 36.66666667 | R24: 51.66666667 | S24: 70 | T24: 4.334159171e-15 | U24: 0 | V24: 51.66666667 | W24: 80 | X24: 3.333333333 | Y24: 0 | Z24: 1.333333333 | AA24: 0.3333333333 | AB24: 0 | AC24: 0 | AD24: 3 | AE24: 7 | AF24: -1.16302367e-15 | AG24: 0 | AH24: 15 | AI24: 40 | AJ24: 0 | AK24: -2.696467602e-15 | AL24: 36.66666667 | AM24: 50 | AN24: 0 | AO24: 0 | AP24: 26.66666667 | AQ24: 50 | AR24: 4.741914055e-15
A25: 29 | D25: SV1758 | E25: 0 | F25: 0.3333333333 | G25: 0.6666666667 | H25: 0 | I25: 0 | J25: 1 | K25: 19.33333333 | L25: -9.184276603e-16 | M25: 13.33333333 | N25: 31.66666667 | O25: 56.66666667 | P25: -1.35221695e-15 | Q25: 36.66666667 | R25: 50 | S25: 70 | T25: 5.980052608e-17 | U25: 0 | V25: 51.66666667 | W25: 83.33333333 | X25: -1.595511917e-15 | Y25: 0 | Z25: 1 | AA25: 0.6666666667 | AB25: 0 | AC25: 0 | AD25: 1.333333333 | AE25: 23.33333333 | AF25: 2.710505431e-18 | AG25: 0 | AH25: 15 | AI25: 40 | AJ25: 0 | AK25: 3.333333333 | AL25: 21.66666667 | AM25: 50 | AN25: 0 | AO25: 0 | AP25: 33.33333333 | AQ25: 51.66666667 | AR25: 4.196991785e-17
A26: 12 | C26: o | D26: Klimt | E26: 0 | F26: 0.3333333333 | G26: 1 | H26: 0 | I26: 0 | J26: 3 | K26: 17 | L26: -1.140472265e-15 | M26: 6.666666667 | N26: 24.66666667 | O26: 56.66666667 | P26: 1.666666667 | Q26: 36.66666667 | R26: 48.33333333 | S26: 70 | T26: 2.910969895e-16 | U26: 0 | V26: 50 | W26: 81.66666667 | X26: -2.927779547e-15 | Y26: 0 | Z26: 1.666666667 | AA26: 1.035684125e-16 | AB26: 0 | AC26: 0 | AD26: 3.333333333 | AE26: 16.33333333 | AF26: 3.046608105e-17 | AG26: 0 | AH26: 11 | AI26: 33.33333333 | AJ26: 0 | AK26: 3.381419983e-16 | AL26: 26.66666667 | AM26: 50 | AN26: 0 | AO26: 0 | AP26: 23.33333333 | AQ26: 55 | AR26: 1.529922203e-16
A27: 37 | D27: HI 1469 | E27: 0 | F27: 1 | G27: 2.333333333 | H27: 0 | I27: 0 | J27: 2.666666667 | K27: 16.66666667 | L27: -9.184276603e-16 | M27: 23.33333333 | N27: 43.33333333 | O27: 60 | P27: -1.35221695e-15 | Q27: 33.33333333 | R27: 55 | S27: 70 | T27: 5.980052608e-17 | U27: 0 | V27: 50 | W27: 81.66666667 | X27: -1.151422707e-15 | Y27: 0 | Z27: 0.6666666667 | AA27: 0.6666666667 | AB27: 0 | AC27: 0 | AD27: 1.333333333 | AE27: 5 | AF27: 0.6666666667 | AG27: 0 | AH27: 18.33333333 | AI27: 31.66666667 | AJ27: 0 | AK27: 5.601866032e-16 | AL27: 23.33333333 | AM27: 50 | AN27: 0 | AO27: 0 | AP27: 33.33333333 | AQ27: 53.33333333 | AR27: 4.196991785e-17
A28: 19 | C28: o | D28: Whisky | E28: 0 | F28: 2 | G28: 0.6666666667 | H28: 0 | I28: 0 | J28: 11 | K28: 36.66666667 | L28: -1.140472265e-15 | M28: 16.66666667 | N28: 43.33333333 | O28: 63.33333333 | P28: -1.574261554e-15 | Q28: 43.33333333 | R28: 51.66666667 | S28: 68.33333333 | T28: 9.680796023e-17 | U28: 0 | V28: 51.66666667 | W28: 83.33333333 | X28: -2.927779547e-15 | Y28: 0 | Z28: 1.333333333 | AA28: 1 | AB28: 0 | AC28: 0 | AD28: 2.333333333 | AE28: 20.66666667 | AF28: -2.504507018e-17 | AG28: 0 | AH28: 23.33333333 | AI28: 30 | AJ28: 0 | AK28: 6.666666667 | AL28: 43.33333333 | AM28: 48.33333333 | AN28: 0 | AO28: 0 | AP28: 33.33333333 | AQ28: 35 | AR28: 1.529922203e-16
A29: 40 | D29: MA4069 | E29: 0 | F29: 1.333333333 | G29: 0.6666666667 | H29: 0 | I29: 0 | J29: 9.333333333 | K29: 18.66666667 | L29: -4.743384505e-16 | M29: 3.096481405e-16 | N29: 36.66666667 | O29: 65 | P29: -1.130172345e-15 | Q29: 40 | R29: 51.66666667 | S29: 68.33333333 | T29: 5.980052608e-17 | U29: 0 | V29: 53.33333333 | W29: 80 | X29: -7.073334973e-16 | Y29: 0 | Z29: 1 | AA29: 1.666666667 | AB29: 0 | AC29: 0 | AD29: 2.666666667 | AE29: 7.666666667 | AF29: -5.28006458e-17 | AG29: 0 | AH29: 20 | AI29: 30 | AJ29: 0 | AK29: 2.641271299e-16 | AL29: 33.33333333 | AM29: 50 | AN29: 0 | AO29: 0 | AP29: 40 | AQ29: 51.66666667 | AR29: -1.430672529e-16
A30: 13 | D30: Farina KWS | E30: 0 | F30: 1 | G30: 1.584019374e-16 | H30: 0 | I30: 0 | J30: 4.333333333 | K30: 21 | L30: 6 | M30: 9.191432337e-15 | N30: 26.66666667 | O30: 60 | P30: -1.796306159e-15 | Q30: 30 | R30: 40 | S30: 68.33333333 | T30: 2.355858383e-16 | U30: 0 | V30: 51.66666667 | W30: 81.66666667 | X30: 3.333333333 | Y30: 0 | Z30: 3.333333333 | AA30: 2.333333333 | AB30: 0 | AC30: 0 | AD30: 1.666666667 | AE30: 20 | AF30: 3.333333333 | AG30: 0 | AH30: 14.33333333 | AI30: 35 | AJ30: 0 | AK30: 7.822312081e-16 | AL30: 35 | AM30: 51.66666667 | AN30: 0 | AO30: 0 | AP30: 23.33333333 | AQ30: 51.66666667 | AR30: 1.529922203e-16
A31: 26 | D31: SV1722 | E31: 0 | F31: 0.6666666667 | G31: 0.3333333333 | H31: 0 | I31: 0 | J31: 16.66666667 | K31: 13.33333333 | L31: -9.184276603e-16 | M31: 18.33333333 | N31: 46.66666667 | O31: 41.66666667 | P31: -1.574261554e-15 | Q31: 43.33333333 | R31: 53.33333333 | S31: 66.66666667 | T31: 5.980052608e-17 | U31: 0 | V31: 55 | W31: 76.66666667 | X31: -1.595511917e-15 | Y31: 0 | Z31: 2.666666667 | AA31: 0.6666666667 | AB31: 0 | AC31: 0 | AD31: 3.666666667 | AE31: 5 | AF31: 2.710505431e-18 | AG31: 0 | AH31: 29.33333333 | AI31: 26.66666667 | AJ31: 0 | AK31: -1.059472116e-16 | AL31: 31.66666667 | AM31: 36.66666667 | AN31: 0 | AO31: 0 | AP31: 48.33333333 | AQ31: 41.66666667 | AR31: 4.196991785e-17
A32: 31 | D32: SV1800 | E32: 0 | F32: 0.6666666667 | G32: 0.3333333333 | H32: 0 | I32: 0 | J32: 4.666666667 | K32: 6 | L32: -9.184276603e-16 | M32: 5 | N32: 40 | O32: 58.66666667 | P32: -1.35221695e-15 | Q32: 36.66666667 | R32: 46.66666667 | S32: 66.66666667 | T32: 5.980052608e-17 | U32: 0 | V32: 55 | W32: 76.66666667 | X32: -1.595511917e-15 | Y32: 0 | Z32: 0.6666666667 | AA32: 0.6666666667 | AB32: 0 | AC32: 0 | AD32: 3.333333333 | AE32: 12.66666667 | AF32: 2.710505431e-18 | AG32: 0 | AH32: 16.66666667 | AI32: 36.66666667 | AJ32: 0 | AK32: 6.666666667 | AL32: 20 | AM32: 50 | AN32: 0 | AO32: 0 | AP32: 40 | AQ32: 53.33333333 | AR32: -6.905238461e-17
A33: 22 | C33: o | D33: Joker | E33: 0 | F33: 2 | G33: 0.6666666667 | H33: 0 | I33: 0 | J33: 6 | K33: 8.333333333 | L33: -9.184276603e-16 | M33: 13.33333333 | N33: 30 | O33: 50 | P33: 3.333333333 | Q33: 33.33333333 | R33: 50 | S33: 66.66666667 | T33: 5.980052608e-17 | U33: 0 | V33: 55 | W33: 80 | X33: 3.333333333 | Y33: 0 | Z33: 1.666666667 | AA33: 0.6666666667 | AB33: 0 | AC33: 0 | AD33: 2.333333333 | AE33: 6.666666667 | AF33: 1 | AG33: 0 | AH33: 20 | AI33: 28.33333333 | AJ33: 0 | AK33: 3.381419983e-16 | AL33: 41.66666667 | AM33: 38.33333333 | AN33: 0 | AO33: 0 | AP33: 30 | AQ33: 50 | AR33: 4.196991785e-17
A34: 3 | B34: * | D34: Criollo | E34: 0 | F34: 1 | G34: 0.6666666667 | H34: 0 | I34: 0 | J34: 3 | K34: 21.66666667 | L34: 10 | M34: 6.666666667 | N34: 36.66666667 | O34: 56 | P34: 3.333333333 | Q34: 26.66666667 | R34: 53.33333333 | S34: 66.66666667 | T34: 1.800746871e-16 | U34: 0 | V34: 55 | W34: 85 | X34: -2.632442875e-16 | Y34: 0 | Z34: 1.333333333 | AA34: 0.6666666667 | AB34: 0 | AC34: 0 | AD34: 1.666666667 | AE34: 13.33333333 | AF34: -8.055622142e-17 | AG34: 0 | AH34: 16.66666667 | AI34: 36.66666667 | AJ34: 0 | AK34: -1.059472116e-16 | AL34: 13.33333333 | AM34: 50 | AN34: 0 | AO34: 0 | AP34: 40 | AQ34: 53.33333333 | AR34: -1.800746871e-16
A35: 8 | D35: Ragna KWS | E35: 0 | F35: 0.6666666667 | G35: 1.666666667 | H35: 0 | I35: 0 | J35: 7.666666667 | K35: 8.333333333 | L35: -1.140472265e-15 | M35: 9.191432337e-15 | N35: 30 | O35: 43.33333333 | P35: -1.796306159e-15 | Q35: 30 | R35: 50 | S35: 66 | T35: 3.466081408e-16 | U35: 0 | V35: 50 | W35: 75 | X35: -2.927779547e-15 | Y35: 0 | Z35: 6.738316502e-16 | AA35: 1.035684125e-16 | AB35: 0 | AC35: 0 | AD35: 7.666666667 | AE35: 13.33333333 | AF35: 2.333333333 | AG35: 0 | AH35: 11.66666667 | AI35: 23.33333333 | AJ35: 0 | AK35: 3.381419983e-16 | AL35: 31.66666667 | AM35: 46.66666667 | AN35: 0 | AO35: 0 | AP35: 26.66666667 | AQ35: 48.33333333 | AR35: 3.750368252e-16
A36: 11 | B36: * | D36: Degas | E36: 0 | F36: 1.333333333 | G36: 0.6666666667 | H36: 0 | I36: 0 | J36: 7.666666667 | K36: 9 | L36: -2.522938455e-16 | M36: 7.333333333 | N36: 46.66666667 | O36: 43.33333333 | P36: -1.130172345e-15 | Q36: 33.33333333 | R36: 46.66666667 | S36: 65 | T36: 1.245635358e-16 | U36: 0 | V36: 56.66666667 | W36: 80 | X36: -2.632442875e-16 | Y36: 0 | Z36: 2 | AA36: 0.3333333333 | AB36: 0 | AC36: 0 | AD36: 1.666666667 | AE36: 15.33333333 | AF36: -8.055622142e-17 | AG36: 0 | AH36: 20 | AI36: 30 | AJ36: 0 | AK36: -1.059472116e-16 | AL36: 21.66666667 | AM36: 48.33333333 | AN36: 0 | AO36: 0 | AP36: 40 | AQ36: 50 | AR36: 16.66666667
A37: 9 | B37: * | D37: Daphna | E37: 0 | F37: 0.3333333333 | G37: 0.6666666667 | H37: 0 | I37: 0 | J37: 2.333333333 | K37: 16 | L37: 3.333333333 | M37: 6.666666667 | N37: 35 | O37: 56.66666667 | P37: -1.796306159e-15 | Q37: 33.33333333 | R37: 35 | S37: 65 | T37: 3.466081408e-16 | U37: 0 | V37: 51.66666667 | W37: 81.66666667 | X37: -2.927779547e-15 | Y37: 0 | Z37: 1.333333333 | AA37: 1.333333333 | AB37: 0 | AC37: 0 | AD37: -4.887583394e-16 | AE37: 8.666666667 | AF37: 0.3333333333 | AG37: 0 | AH37: 7.666666667 | AI37: 35 | AJ37: 0 | AK37: 3.381419983e-16 | AL37: 16.66666667 | AM37: 50 | AN37: 0 | AO37: 0 | AP37: 30 | AQ37: 50 | AR37: 3.750368252e-16
A38: 15 | C38: o | D38: Einar | E38: 0 | F38: 2.333333333 | G38: 0.3333333333 | H38: 0 | I38: 0 | J38: 1.666666667 | K38: 7.666666667 | L38: -1.140472265e-15 | M38: 3.333333333 | N38: 30 | O38: 50 | P38: -1.574261554e-15 | Q38: 26.66666667 | R38: 55 | S38: 65 | T38: 1.800746871e-16 | U38: 0 | V38: 50 | W38: 75 | X38: -2.927779547e-15 | Y38: 0 | Z38: 2.333333333 | AA38: 1.035684125e-16 | AB38: 0 | AC38: 0 | AD38: 1.333333333 | AE38: 12.66666667 | AF38: 3.046608105e-17 | AG38: 0 | AH38: 16.66666667 | AI38: 28.33333333 | AJ38: 0 | AK38: 7.822312081e-16 | AL38: 26.66666667 | AM38: 48.33333333 | AN38: 0 | AO38: 0 | AP38: 26.66666667 | AQ38: 50 | AR38: 1.529922203e-16
A39: 30 | D39: SV1765 | E39: 0 | F39: 2.333333333 | G39: 7.135134497e-16 | H39: 0 | I39: 0 | J39: 8.666666667 | K39: 15.33333333 | L39: -9.184276603e-16 | M39: 16.66666667 | N39: 36.66666667 | O39: 56.66666667 | P39: -1.35221695e-15 | Q39: 40 | R39: 51.66666667 | S39: 63.33333333 | T39: 5.980052608e-17 | U39: 0 | V39: 51.66666667 | W39: 78.33333333 | X39: -1.595511917e-15 | Y39: 0 | Z39: 1 | AA39: 0.6666666667 | AB39: 0 | AC39: 0 | AD39: 5 | AE39: 6 | AF39: 2.710505431e-18 | AG39: 0 | AH39: 23.33333333 | AI39: 16.66666667 | AJ39: 0 | AK39: 3.381419983e-16 | AL39: 33.33333333 | AM39: 48.33333333 | AN39: 0 | AO39: 0 | AP39: 46.66666667 | AQ39: 46.66666667 | AR39: -6.905238461e-17
A40: 27 | D40: SV1723 | E40: 0 | F40: 0.6666666667 | G40: 0.3333333333 | H40: 0 | I40: 0 | J40: 4.333333333 | K40: 7 | L40: -9.184276603e-16 | M40: 20 | N40: 31.66666667 | O40: 50 | P40: -1.574261554e-15 | Q40: 36.66666667 | R40: 53.33333333 | S40: 63.33333333 | T40: 5.980052608e-17 | U40: 0 | V40: 51.66666667 | W40: 80 | X40: -1.595511917e-15 | Y40: 0 | Z40: 1 | AA40: 0.6666666667 | AB40: 0 | AC40: 0 | AD40: 0.3333333333 | AE40: 23.33333333 | AF40: 2.710505431e-18 | AG40: 0 | AH40: 13.33333333 | AI40: 30 | AJ40: 0 | AK40: 3.333333333 | AL40: 8.333333333 | AM40: 48.33333333 | AN40: 0 | AO40: 0 | AP40: 16.66666667 | AQ40: 48.33333333 | AR40: 4.196991785e-17
A41: 25 | D41: 6K697 | E41: 0 | F41: 1 | G41: 1 | H41: 0 | I41: 0 | J41: 9.333333333 | K41: 6.666666667 | L41: -2.522938455e-16 | M41: 18.33333333 | N41: 41.66666667 | O41: 61.66666667 | P41: -9.081277397e-16 | Q41: 26.66666667 | R41: 51.66666667 | S41: 63.33333333 | T41: 5.980052608e-17 | U41: 0 | V41: 51.66666667 | W41: 81.66666667 | X41: -2.632442875e-16 | Y41: 0 | Z41: 1 | AA41: 1 | AB41: 0 | AC41: 0 | AD41: 8.435092902e-16 | AE41: 15 | AF41: 1.333333333 | AG41: 0 | AH41: 10 | AI41: 33.33333333 | AJ41: 0 | AK41: -3.279918165e-16 | AL41: 31.66666667 | AM41: 41.66666667 | AN41: 0 | AO41: 0 | AP41: 20 | AQ41: 46.66666667 | AR41: -2.910969895e-16
A42: 28 | D42: SV1740 | E42: 0 | F42: 1.666666667 | G42: 1.666666667 | H42: 0 | I42: 0 | J42: 3.333333333 | K42: 8 | L42: -9.184276603e-16 | M42: 16.66666667 | N42: 48.33333333 | O42: 36.66666667 | P42: -1.35221695e-15 | Q42: 46.66666667 | R42: 50 | S42: 61.66666667 | T42: 5.980052608e-17 | U42: 0 | V42: 53.33333333 | W42: 75 | X42: -1.595511917e-15 | Y42: 0 | Z42: 1 | AA42: 0.3333333333 | AB42: 0 | AC42: 0 | AD42: 4 | AE42: 1 | AF42: 2.710505431e-18 | AG42: 0 | AH42: 21.66666667 | AI42: 10 | AJ42: 0 | AK42: 3.381419983e-16 | AL42: 25 | AM42: 45 | AN42: 0 | AO42: 0 | AP42: 30 | AQ42: 50 | AR42: 4.196991785e-17
A43: 33 | D43: ST12664 | E43: 0 | F43: 0.3333333333 | G43: 2.694242399e-16 | H43: 0 | I43: 0 | J43: 6.666666667 | K43: 7.666666667 | L43: -9.184276603e-16 | M43: 13.33333333 | N43: 36.66666667 | O43: 43.33333333 | P43: -1.35221695e-15 | Q43: 43.33333333 | R43: 48.33333333 | S43: 60 | T43: 5.980052608e-17 | U43: 0 | V43: 51.66666667 | W43: 73.33333333 | X43: -1.595511917e-15 | Y43: 0 | Z43: 1.333333333 | AA43: 1.333333333 | AB43: 0 | AC43: 0 | AD43: 1.333333333 | AE43: 4.333333333 | AF43: 0.3333333333 | AG43: 0 | AH43: 11.66666667 | AI43: 33.33333333 | AJ43: 0 | AK43: 3.381419983e-16 | AL43: 30 | AM43: 41.66666667 | AN43: 0 | AO43: 0 | AP43: 40 | AQ43: 50 | AR43: 4.196991785e-17
A44: 32 | D44: ST12651 | E44: 0 | F44: 1.333333333 | G44: 2.694242399e-16 | H44: 0 | I44: 0 | J44: 9.333333333 | K44: 6.666666667 | L44: -9.184276603e-16 | M44: 13.33333333 | N44: 46.66666667 | O44: 46.66666667 | P44: -1.35221695e-15 | Q44: 40 | R44: 46.66666667 | S44: 60 | T44: 5.980052608e-17 | U44: 0 | V44: 55 | W44: 70 | X44: -1.595511917e-15 | Y44: 0 | Z44: 1 | AA44: 4.366353199e-16 | AB44: 0 | AC44: 0 | AD44: 2 | AE44: 0.3333333333 | AF44: 2.710505431e-18 | AG44: 0 | AH44: 18.33333333 | AI44: 20 | AJ44: 0 | AK44: 3.381419983e-16 | AL44: 48.33333333 | AM44: 25 | AN44: 0 | AO44: 0 | AP44: 46.66666667 | AQ44: 36.66666667 | AR44: 4.196991785e-17
A45: 23 | D45: 6K649 | E45: 0 | F45: 1 | G45: 1 | H45: 0 | I45: 0 | J45: 5.666666667 | K45: 12.66666667 | L45: 1.666666667 | M45: 23.33333333 | N45: 36.66666667 | O45: 56.66666667 | P45: -1.574261554e-15 | Q45: 43.33333333 | R45: 46.66666667 | S45: 58.33333333 | T45: 5.980052608e-17 | U45: 0 | V45: 51.66666667 | W45: 70 | X45: -1.595511917e-15 | Y45: 0 | Z45: 2.333333333 | AA45: 0.6666666667 | AB45: 0 | AC45: 0 | AD45: 1.73168771e-15 | AE45: 11.33333333 | AF45: -5.28006458e-17 | AG45: 0 | AH45: 15 | AI45: 18.33333333 | AJ45: 0 | AK45: 3.381419983e-16 | AL45: 38.33333333 | AM45: 33.33333333 | AN45: 0 | AO45: 0 | AP45: 36.66666667 | AQ45: 31.66666667 | AR45: 4.196991785e-17
A46: 24 | D46: 6K680 | E46: 0 | F46: 1.666666667 | G46: 0.6666666667 | H46: 0 | I46: 0 | J46: 13.33333333 | K46: 5 | L46: 2.666666667 | M46: 6.526897078e-15 | N46: 48.33333333 | O46: 26.66666667 | P46: -1.574261554e-15 | Q46: 30 | R46: 48.33333333 | S46: 51.66666667 | T46: 5.980052608e-17 | U46: 0 | V46: 51.66666667 | W46: 60 | X46: -1.595511917e-15 | Y46: 0 | Z46: 1 | AA46: 4.366353199e-16 | AB46: 0 | AC46: 0 | AD46: 1 | AE46: 12.66666667 | AF46: 2.710505431e-18 | AG46: 0 | AH46: 23.33333333 | AI46: 16.66666667 | AJ46: 0 | AK46: 3.381419983e-16 | AL46: 45 | AM46: 18.33333333 | AN46: 0 | AO46: 0 | AP46: 48.33333333 | AQ46: 18.33333333 | AR46: 4.196991785e-17
A47: 6 | B47: * | D47: Cantona KWS | E47: 0 | F47: 4.923904166e-16 | G47: 1.584019374e-16 | H47: 0 | I47: 0 | J47: 5.333333333 | K47: 2.333333333 | L47: -1.140472265e-15 | M47: 15 | N47: 40 | O47: 35 | P47: 1.666666667 | Q47: 30 | R47: 45 | S47: 51.66666667 | T47: 3.466081408e-16 | U47: 0 | V47: 46.66666667 | W47: 60 | X47: -2.927779547e-15 | Y47: 0 | Z47: 1 | AA47: 0.6666666667 | AB47: 0 | AC47: 0 | AD47: 0.3333333333 | AE47: 1.666666667 | AF47: 8.597723228e-17 | AG47: 0 | AH47: 14.33333333 | AI47: 8.333333333 | AJ47: 0 | AK47: 3.381419983e-16 | AL47: 41.66666667 | AM47: 23.33333333 | AN47: 0 | AO47: 0 | AP47: 41.66666667 | AQ47: 38.33333333 | AR47: 3.750368252e-16
A48: 14 | C48: o | D48: Selma KWS | E48: 0 | F48: 2.333333333 | G48: 0.3333333333 | H48: 0 | I48: 0 | J48: 3 | K48: 0.6666666667 | L48: -1.140472265e-15 | M48: 23.33333333 | N48: 48.33333333 | O48: 25 | P48: 1.666666667 | Q48: 23.33333333 | R48: 61.66666667 | S48: 30 | T48: 2.355858383e-16 | U48: 0 | V48: 66.66666667 | W48: 10 | X48: -2.927779547e-15 | Y48: 0 | Z48: 1.333333333 | AA48: 0.6666666667 | AB48: 0 | AC48: 0 | AD48: 2.333333333 | AE48: -1.909930547e-15 | AF48: 8.597723228e-17 | AG48: 0 | AH48: 15 | AI48: 3.333333333 | AJ48: 0 | AK48: 7.822312081e-16 | AL48: 36.66666667 | AM48: 5 | AN48: 0 | AO48: 0 | AP48: 40 | AQ48: 5 | AR48: 1.529922203e-16
A49: LSD | E49: 0 | F49: 1.815045652 | G49: 1.779212964 | H49: 0 | I49: 0 | J49: 7.092076495 | K49: 16.34741347 | L49: 5.193998477 | M49: 22.28327801 | N49: 14.04062508 | O49: 20.16878059 | P49: 4.860031558 | Q49: 13.93968624 | R49: 10.97423746 | S49: 11.91845082 | T49: 2.058980729 | U49: 0 | V49: 8.236737346 | W49: 6.222385359 | X49: 2.53763619 | Y49: 0 | Z49: 1.709690206 | AA49: 1.978027319 | AB49: 0 | AC49: 0 | AD49: 6.403866252 | AE49: 17.81347101 | AF49: 2.120483178 | AG49: 0 | AH49: 12.73647331 | AI49: 17.57805404 | AJ49: 0 | AK49: 3.91761499 | AL49: 19.41713197 | AM49: 15.82253981 | AN49: 0 | AO49: 0 | AP49: 16.40410551 | AQ49: 13.57546423 | AR49: 7.488535302
A50: CV | F50: 101.0258396 | G50: 128.2692216 | J50: 73.54182024 | K50: 58.92689752 | L50: 393.1747703 | M50: 103.2943858 | N50: 23.34385711 | O50: 22.49498024 | P50: 391.3767834 | Q50: 24.48271361 | R50: 13.4313131 | S50: 10.77513056 | T50: 519.5350485 | V50: 9.689257325 | W50: 4.945107573 | X50: 640.3124237 | Z50: 80.88747247 | AA50: 142.6023919 | AD50: 154.8751497 | AE50: 81.18256012 | AF50: 422.4108439 | AH50: 50.29338893 | AI50: 36.27649273 | AK50: 296.5552225 | AL50: 41.11429616 | AM50: 21.52260584 | AP50: 31.00515148 | AQ50: 17.49164452 | AR50: 944.7773106
A51: p-value | F51: 0.4025470225 | G51: 0.1959187237 | J51: 1.132936163e-05 | K51: 8.708109703e-05 | L51: 0.3757694391 | M51: 0.4708738113 | N51: 0.02010567867 | O51: 0.0001585905835 | P51: 0.02525001651 | Q51: 0.07082675953 | R51: 0.1168013268 | S51: 5.433898133e-10 | T51: 0.0002795023815 | V51: 0.121818421 | W51: 1.107508649e-34 | X51: 0.5617580811 | Z51: 0.3764830727 | AA51: 0.8836344309 | AD51: 0.3759966004 | AE51: 0.0545222627 | AF51: 0.5571163638 | AH51: 0.1838970303 | AI51: 0.000702047107 | AK51: 0.005907615793 | AL51: 0.0003790386182 | AM51: 5.839705713e-07 | AP51: 0.0001586857834 | AQ51: 2.636259912e-09 | AR51: 0.5087801617
D53: res
D54: mean
D55: cv glm

Sheet Soil analyses
A1: Jordanalyser / Soil analysis
A3: Indholdsstoffer og tekstur (0-30 cm)
A4: Forsøg | B4: Vært | C4: Dato | D4: Rt | E4: Pt | F4: Kt | G4: Mgt | H4: Bt | I4: JB-nr | J4: Ler % | K4: Silt % | L4: Finsand % | M4: Grovsand % | N4: Humus %
A5: 808 | B5: KN2 | C5: 2017-02-02 | D5: 7.8 | E5: 4.1 | F5: 15 | G5: 7.5 | H5: 0.23 | I5: 7 | J5: 18 | K5: 15 | L5: 36 | M5: 28 | N5: 1.7
A9: N-min (0-75 cm)
A10: Forsøg | B10: Vært | C10: Dato | D10: NO3- | E10: NH4+ | F10: Total
A11: 808 | B11: KN2 | C11: 2017-03-27 | D11: 5.16 | E11: 0.87
A14: Roecystenematoder (pr. 1000 gram jord)
A15: Forsøg | B15: Vært | C15: Dato | D15: Æg + larver | E15: Cyster | F15: HCN
A17: 808 | B17: KN2 | C17: 2017-02-02 | D17: 0 | E17: 0

Sheet Aktivities
A1: Forsøgsaktiviteter og info / Trial activities and info
A3: Aktivitet | D3: 808 KN2
A4: Såning med frøskift | D4: 2017-04-26
A5: Antal 100% | D5: 2017-06-20
A6: Fungicidbeh Gent 2,4,6 | B6: TI (ved beg. angreb) | D6: 2017-08-10
A7: Fungicidbeh Gent 2,4,6 | B7: TI (ca 3 uger efter T1) | D7: 2017-09-04
A8: Angreb skala 0-100 | B8: T1 +/- 2 d | D8: 2016-08-10
A9: Angreb skala 0-100 | B9: T1+(15-20 d) | D9: 2017-08-25
A10: Angreb skala 0-100 | B10: T2+(15-20 d) | D10: 2017-09-22
A11: Angreb skala 0-100 | B11: T2+(30-40 d) | D11: 2017-10-18
A12: Angreb skala 0-100 | B12: T2+(50-60 d) | D12: 2017-10-24
A13: Høst | B13: Syn | D13: 2017-10-24
A14: Høst | B14: Parcel optagning | D14: 2017-10-30
A15: Generel trial info | D15: 808 KN
A16: Antal gentagelser | C16: No of replications | D16: 3+3
A17: Brutto plot, ant rk | C17: Gross plot, no. Rows | D17: 6
A18: Brutto plot, m2 | C18: Gross plot, m2 | D18: 24
A19: Netto plot udbytte, ant rk | C19: Net plot yield, no. Rows | D19: 2
A20: Netto plot udbytte, m2 | C20: Net plot yield, m2 | D20: 8
A21: Rækkeafstand, cm | C21: Row distance, cm | D21: 50
A22: Frøafstand,cm | C22: Seed distance, cm | D22: 17.25

Sheet Maintenance
A1: Gødning og planteværn / Fertiliser and crop protection
A3: Type | B3: Problem | C3: Forsoeg | D3: Vaert | E3: Dato | F3: Middel | G3: Mgd_ha | H3: Enhed
A4: Forfrugt | C4: 808 | D4: KN2 | F4: Vinterhvede, Olieræddike
A5: Gødning | C5: . | E5: 2017-08-22 | F5: Novoslam | G5: 40 | H5: kgN/ha
C6: . | E6: 2017-04-25 | F6: NPK 21-3-10 | G6: 60 | H6: kgN/ha
A7: Planteværn | B7: Ukrudt | C7: . | E7: 2017-05-19 | F7: Betanal | G7: 1.5 | H7: l/ha
C8: . | F8: Goltix SC 700 | G8: 1 | H8: l/ha
C9: . | F9: Renol | G9: 0.5 | H9: l/ha
C10: . | E10: 2017-05-25 | F10: Kemifam Power | G10: 0.6 | H10: l/ha
C11: . | F11: Ethofol 500 | G11: 0.07 | H11: l/ha
C12: . | F12: Safari | G12: 10 | H12: g/ha
C13: . | F13: Novo Balance | G13: 0.3 | H13: l/ha
C14: . | F14: Renol | G14: 0.5 | H14: l/ha
C15: . | E15: 2017-06-10 | F15: Betanal | G15: 1.5 | H15: l/ha
C16: . | F16: Ethofol 500 | G16: 0.07 | H16: l/ha
C17: . | F17: Safari | G17: 10 | H17: g/ha
C18: . | F18: Renol | G18: 0.5 | H18: l/ha
C19: . | E19: 2017-06-20 | F19: Goltix SC 700 | G19: 1 | H19: l/ha
C20: . | F20: Kemifam Power | G20: 0.6 | H20: l/ha
C21: . | F21: Novo Balance | G21: 0.3 | H21: l/ha
C22: . | F22: Renol | G22: 0.5 | H22: l/ha
B23: Sygdom | C23: . | E23: 2017-08-10 | F23: Opera | G23: 0.5 | H23: l/ha
B24: (Gent 2,4,6) | C24: . | E24: 2017-09-04 | F24: Opera | G24: 0.5 | H24: l/ha
